Workbook

Sheet Home
B9: This calculator utilizes Visual Basic for Applications (VBA)
B10: For functionality, click the "Options..." button and select "Enable this content"
B11: Press "Size Riser Piping" Button at right and follow instructions on each tab to determine the size of piping needed.
B12: Once proper sizes are selected for each applicable section on "Pressure Losses" tab, return to "Home" tab.
B16: Press "Size Circulator" button at right and follow instructions to determine circulator and circulation flow rate.
B21: Press "Cost Comparisons" button and follow instructions on each tab to see how much you will save by using SmartLoop

Sheet Sizing Info
B2: This section will aid in the process of sizing water distribution piping using the Viega SmartLoop recirculation system.
C3: To properly size any portion of a building's piping system, the entire building must be considered.
C4: For accurate results please read the instructions on each page carefully and fill in all requested information.
D5: The method used is adapted from the method described in appendix E of The 2009 International Plumbing Code (IPC).
E6: This method should also satisfy Uniform Plumbing Code requirements, but verification from local code authorities is required.
D7: This method finds all the pressure losses in the piping system and ensures that adequate pressure remains at the most remote fitting.
B9: The "Load" tab can accommodate up to three different floor configurations, but matching floors must be consecutive.
B10: 1 | C10: Enter a name in upper yellow cell for each "Type of Floor" that will be used, starting from the left.
B11: 2 | C11: Enter number of floors that will match each configuration in lowest yellow cells.
B12: 3 | C12: Enter number of fixtures found on ONE floor of each type used, in yellow cells of the table.
C13: (For fixtures not listed estimate the closest equivalent fixture type.)
B14: 4 | C14: Load totals per floor are displayed in blue at the bottom of each type. Riser total is in blue at top.
B15: Input lengths of piping sections on the "Length" tab. These lengths will be used to find pressure losses from pipe friction.
B16: 1 | C16: Enter floor to floor height (between piping on each floor)
B17: 2 | C17: Enter height difference between water main and first floor
B18: 3 | C18: Enter horizontal distance of piping between water main and the point where system splits into hot and cold.
B19: 5 | C19: For each type of floor, enter the distance between riser and most remote fitting on that type of floor.
B20: The "Pressure" tab collects pressure values to find the remaining pressure available to overcome pipe friction.
B21: 1 | C21: Enter pressure values in yellow cells.
B22: 2 | C22: Enter minimum operating pressure of most remote HOT water fixture.
B23: 3 | C23: To find "Pressure loss from tap into main", the size of the tap and the maximum flow rate are needed.
B24: 4 | C24: Instructions on how to find flow rate using this and another tab are listed.
B25: "Pressure Losses"
B26: 1 | C26: Ensure "Load" and "Length" tabs are filled out correctly.
B27: 2 | C27: Click "Fill Tables" button. This will display vertical demand loads and vertical lengths in table.
B28: 3 | C28: Under "Cold section", select whether the majority of the cold water system uses flush tanks or flush valves.
B29: 5 | C29: Choose a trial pipe size for each line in table below that has a load demand value.
B30: 6 | C30: Return to "Pressure" tab and enter "Pressure loss from tap into main" value using Section Flow in blue near top of table.
B31: 7 | C31: Adjust trial pipe size until velocities are less than 5 feet per second.
B32: 8 | C32: Enter equivalent length of the fittings found between main and most remote fitting for each section of piping.
B33: 9 | C33: Adjust pipe size until excess pressure (lower right of each table) is a small positive number.
B34: The "Fittings" tab contains a stand alone calculator to find equivalent lengths of a combination of fittings.
B35: 1 | C35: Select pipe size in upper yellow cell.
B36: 2 | C36: Press button to display equivalent length of fittings for the pipe size shown.
B37: 3 | C37: Enter quantity of each type of fitting used.
B38: 4 | C38: Total equivalent length of fittings shown will display in blue at the bottom.
C39: * | D39: Pressure losses from pipe friction calculated using 110% of value from Hazen-Williams equation with C = 150 for both copper and PEX
C40: * | D40: Type L copper tube is used for calculations involving actual tube size
C41: * | D41: Velocity and friction loss calculations for hot vertical section use experimentally determined average hydraulic diameter of Type L copper with 3/8" PEX inline recirculation

Sheet Load
A2: This Table can accommodate up to three different floor configurations, but matching floors must be consecutive. | K2: For example, floors 1 and 2 of Type A, 3 - 10 of Type B, and 11 and 12 of Type C
A3: 1 | B3: Enter a name in uppermost yellow cell (E12:G12) for each "Type of Floor" that will be used, starting from the left. | K3: If all floors are the same, only enter one type of floor name.
A4: 2 | B4: Enter number of floors that will match each configuration in lowest yellow cells (E13:G13).
A5: 3 | B5: Enter number of fixtures found on ONE floor of each type used, in remaining yellow cells (E15:G41) of the table below. | L5: Riser Totals: | S5: Headings
A6: 4 | B6: Load totals per floor are displayed in blue (L43:V43) at the bottom of each type. Riser total is in blue (L8:N8) to the right | L6: Cold | M6: Hot | N6: Total | S6: User Input Cells
B7: * Total load only applies for section of piping between water main and hot/cold Tee, where hot and cold loads split. | L7: (wsfu) | M7: (wsfu) | N7: (wsfu) | S7: Calculated Values, Constants
L8: =($E13*cold)+($F13*P43)+($G13*T43) -> 532.25 | M8: =($E13*cold)+($F13*Q43)+($G13*U43) -> 122.75 | N8: =($E13*cold)+($F13*R43)+($G13*V43) -> 553.85 | S8: Important Calculated Values
B9: Load Values Assigned to Fixtures
B10: International Plumbing Code Table 103.3(2)
B11: Type of Fixture | C11: Occupancy | D11: Control Type | E11: Type of Floor | H11: Load Values in Water Supply Fixture Units (wsfu) | L11: Load Totals (wsfu) | P11: Load Totals (wsfu) | T11: Load Totals (wsfu)
E12: Lobby | F12: one
B13: Number of floors floors by type: | E13: 1 | F13: 9 | L13: =E12 -> Lobby | P13: =F12 -> one | T13: =G12 -> 0
E14: Number of Fixtures per Floor | H14: Cold | I14: Hot | J14: Total | L14: Cold | M14: Hot | N14: Total | P14: Cold | Q14: Hot | R14: Total | T14: Cold | U14: Hot | V14: Total
B15: Bathroom Group | C15: Private | D15: Flush Tank | H15: 2.7 | I15: 1.5 | J15: 3.6 | L15: =E15*H15 -> 0 | M15: =E15*I15 -> 0 | N15: =J15*E15 -> 0 | P15: =$F15*H15 -> 0 | Q15: =$F15*I15 -> 0 | R15: =$F15*J15 -> 0 | T15: =$G15*H15 -> 0 | U15: =$G15*I15 -> 0 | V15: =$G15*J15 -> 0
B16: Bathroom Group | C16: Private | D16: Flush Valve | H16: 6 | I16: 3 | J16: 8 | L16: 0 | M16: 0 | N16: 0 | P16: 0 | Q16: 0 | R16: 0 | T16: 0 | U16: 0 | V16: 0
B17: Bathtub | C17: Private | D17: Faucet | H17: 1 | I17: 1 | J17: 1.4 | L17: 0 | M17: 0 | N17: 0 | P17: 0 | Q17: 0 | R17: 0 | T17: 0 | U17: 0 | V17: 0
B18: Bathtub | C18: Public | D18: Faucet | H18: 3 | I18: 3 | J18: 4 | L18: 0 | M18: 0 | N18: 0 | P18: 0 | Q18: 0 | R18: 0 | T18: 0 | U18: 0 | V18: 0
B19: Bidet | C19: Private | D19: Faucet | H19: 1.5 | I19: 1.5 | J19: 2 | L19: 0 | M19: 0 | N19: 0 | P19: 0 | Q19: 0 | R19: 0 | T19: 0 | U19: 0 | V19: 0
B20: Combination | C20: Private | D20: Faucet | H20: 2.25 | I20: 2.25 | J20: 3 | L20: 0 | M20: 0 | N20: 0 | P20: 0 | Q20: 0 | R20: 0 | T20: 0 | U20: 0 | V20: 0
B21: Dishwasher | C21: Private | D21: Auto | E21: 1 | I21: 1.4 | J21: 1.4 | L21: 0 | M21: 1.4 | N21: 1.4 | P21: 0 | Q21: 0 | R21: 0 | T21: 0 | U21: 0 | V21: 0
B22: Drinking Fountain | C22: Offices | D22: 3/8" Valve | E22: 2 | F22: 2 | H22: 0.25 | J22: 0.25 | L22: 0.5 | M22: 0 | N22: 0.5 | P22: 0.5 | Q22: 0 | R22: 0.5 | T22: 0 | U22: 0 | V22: 0
B23: Kitchen Sink | C23: Private | D23: Faucet | F23: 1 | H23: 1 | I23: 1 | J23: 1.4 | L23: 0 | M23: 0 | N23: 0 | P23: 1 | Q23: 1 | R23: 1.4 | T23: 0 | U23: 0 | V23: 0
B24: Kitchen Sink | C24: Restaurant | D24: Faucet | E24: 2 | H24: 3 | I24: 3 | J24: 4 | L24: 6 | M24: 6 | N24: 8 | P24: 0 | Q24: 0 | R24: 0 | T24: 0 | U24: 0 | V24: 0
B25: Laundry Trays (1-3) | C25: Private | D25: Faucet | H25: 1 | I25: 1 | J25: 1.4 | L25: 0 | M25: 0 | N25: 0 | P25: 0 | Q25: 0 | R25: 0 | T25: 0 | U25: 0 | V25: 0
B26: Lavatory | C26: Private | D26: Faucet | H26: 0.5 | I26: 1 | J26: 0.7 | L26: 0 | M26: 0 | N26: 0 | P26: 0 | Q26: 0 | R26: 0 | T26: 0 | U26: 0 | V26: 0
B27: Lavatory | C27: Public | D27: Faucet | E27: 4 | F27: 4 | H27: 1.5 | I27: 1.5 | J27: 2 | L27: 6 | M27: 6 | N27: 8 | P27: 6 | Q27: 6 | R27: 8 | T27: 0 | U27: 0 | V27: 0
B28: Service Sink | C28: Offices | D28: Faucet | E28: 1 | H28: 2.25 | I28: 2.25 | J28: 3 | L28: 2.25 | M28: 2.25 | N28: 3 | P28: 0 | Q28: 0 | R28: 0 | T28: 0 | U28: 0 | V28: 0
B29: Shower Head | C29: Public | D29: Mix Valve | H29: 3 | I29: 3 | J29: 4 | L29: 0 | M29: 0 | N29: 0 | P29: 0 | Q29: 0 | R29: 0 | T29: 0 | U29: 0 | V29: 0
B30: Shower Head | C30: Private | D30: Mix Valve | H30: 1 | I30: 1 | J30: 1.4 | L30: 0 | M30: 0 | N30: 0 | P30: 0 | Q30: 0 | R30: 0 | T30: 0 | U30: 0 | V30: 0
B31: Urinal | C31: Public | D31: 1" Flush | H31: 10 | J31: 10 | L31: 0 | M31: 0 | N31: 0 | P31: 0 | Q31: 0 | R31: 0 | T31: 0 | U31: 0 | V31: 0
B32: Urinal | C32: Public | D32: 3/4" Flush | E32: 1 | F32: 1 | H32: 5 | J32: 5 | L32: 5 | M32: 0 | N32: 5 | P32: 5 | Q32: 0 | R32: 5 | T32: 0 | U32: 0 | V32: 0
B33: Urinal | C33: Public | D33: Flush Tank | H33: 3 | J33: 3 | L33: 0 | M33: 0 | N33: 0 | P33: 0 | Q33: 0 | R33: 0 | T33: 0 | U33: 0 | V33: 0
B34: Washing Machine (8 lb) | C34: Private | D34: Auto | H34: 1 | I34: 1 | J34: 1.4 | L34: 0 | M34: 0 | N34: 0 | P34: 0 | Q34: 0 | R34: 0 | T34: 0 | U34: 0 | V34: 0
B35: Washing Machine (8 lb) | C35: Public | D35: Auto | H35: 2.25 | I35: 2.25 | J35: 3 | L35: 0 | M35: 0 | N35: 0 | P35: 0 | Q35: 0 | R35: 0 | T35: 0 | U35: 0 | V35: 0
B36: Washing Machine (15 lb) | C36: Public | D36: Auto | H36: 3 | I36: 3 | J36: 4 | L36: 0 | M36: 0 | N36: 0 | P36: 0 | Q36: 0 | R36: 0 | T36: 0 | U36: 0 | V36: 0
B37: Water Closet | C37: Private | D37: Flush Valve | H37: 6 | J37: 6 | L37: 0 | M37: 0 | N37: 0 | P37: 0 | Q37: 0 | R37: 0 | T37: 0 | U37: 0 | V37: 0
B38: Water Closet | C38: Private | D38: Flush Tank | H38: 2.2 | J38: 2.2 | L38: 0 | M38: 0 | N38: 0 | P38: 0 | Q38: 0 | R38: 0 | T38: 0 | U38: 0 | V38: 0
B39: Water Closet | C39: Public | D39: Flush Valve | E39: 4 | F39: 4 | H39: 10 | J39: 10 | L39: 40 | M39: 0 | N39: 40 | P39: 40 | Q39: 0 | R39: 40 | T39: 0 | U39: 0 | V39: 0
B40: Water Closet | C40: Public | D40: Flush Tank | H40: 5 | J40: 5 | L40: 0 | M40: 0 | N40: 0 | P40: 0 | Q40: 0 | R40: 0 | T40: 0 | U40: 0 | V40: 0
B41: Water Closet | C41: Either | D41: Flushometer Tank | H41: 2 | J41: 2 | L41: 0 | M41: 0 | N41: 0 | P41: 0 | Q41: 0 | R41: 0 | T41: 0 | U41: 0 | V41: 0
L42: (wsfu) | M42: (wsfu) | N42: (wsfu) | P42: (wsfu) | Q42: (wsfu) | R42: (wsfu) | T42: (wsfu) | U42: (wsfu) | V42: (wsfu)
I43: Totals per Floor: | L43: =SUM(L15:L41) -> 59.75 | M43: =SUM(M15:M41) -> 15.65 | N43: =SUM(N15:N41) -> 65.9 | P43: =SUM(P15:P41) -> 52.5 | Q43: =SUM(Q15:Q41) -> 7 | R43: =SUM(R15:R41) -> 54.9 | T43: =SUM(T15:T41) -> 0 | U43: =SUM(U15:U41) -> 0 | V43: =SUM(V15:V41) -> 0

Sheet Length
A2: 1 | B2: Enter floor to floor height (in cell E17) (between piping on each floor)
A3: 2 | B3: Enter height difference between water main and first floor (in cell E18)
B4: * Since water mains are usually buried less than one story below ground, the height difference between the water main
B5: and the first floor piping is usually different from floor to floor height.
A6: 3 | B6: Enter horizontal distance of piping between water main and the point where system splits into hot and cold (in cell E20).
B7: * This section of piping will carry the total load of the building. The pressure loss due to pipe friction in this section must be applied
B8: to both hot and cold sides of the piping system.
A9: 4 | B9: For each type of floor, enter the horizontal distance between riser and most remote fitting on that type of floor (in cells E24:E26).
B10: * only the highest floor (lowest grey cell) is included in developed length calculations
B11: * The height of the riser and pressure loss due to the height of that column of water (Static head) are displayed for reference only.
B14: System Length Values
I15: Height of riser | K15: =(E16-1)*E17+E18 -> 134 | L15: ft
B16: Number of floors | E16: =SUM(Load!E13:G13) -> 10 | F16: floors | I16: Static head | K16: =K15*0.433 -> 58.022 | L16: psi
B17: Floor to floor height | E17: 14 | F17: ft
B18: height difference between water main and first floor | E18: 8
F19: ft
B20: Horizontal distance between main and hot/cold Tee | E20: 54 | K20: Headings
F21: ft | K21: User Input Cells
B22: Riser to most remote fixture on each type of floor | K22: Calculated Values, Constants
B24: =Load!E12 -> Lobby | E24: 40 | F24: ft
B25: =Load!F12 -> one | E25: 40 | F25: ft
B26: =Load!G12 -> 0 | F26: ft
B27: Horizontal distance of highest floor | E27: =IF(E26=0,IF(E25=0,E24,E25),E26) -> 40
F28: ft

Sheet Pressure
B2: 1 | C2: Enter pressure values in yellow cells (E15 through E24) below.
C3: * The list to the right of the upper table tells where to find pressure values
B4: 2 | C4: Minimum Pressure at most remote fitting (E18) should be for the most remote HOT water fitting.
B5: 3 | C5: To find "Pressure loss from tap into main" (E20), the size of the tap and the maximum flow rate are needed.
B6: 4 | C6: The flow rate can be found as follows:
C7: 1 | D7: On "Pressure Losses" tab, complete steps 1 - 6
C8: 2 | D8: Return to this tab and "Loss of Pressure Through Tap" table should have a row and column highlighted.
C9: 3 | D9: The column that is highlighted is the recommended tap size.
C10: 4 | D10: The row that is highlighted represents the required flow of the building.
C11: *The pressure values below are used in conjunction with values on the Pressure Losses tab to ensure adequate pressure at the most remote fitting
B13: System Pressure Values | G13: Where to find Information *
B15: Minimum pressure at main | E15: 65 | F15: psi | G15: Water supply utility ** | L15: note: ** | M15: if pressure is measured downstream of meter,
B16: Pressure added by booster pump (if applicable) | E16: 18 | F16: psi | G16: Pump manufacturer (leave blank if a booster pump is not used) | M16: enter that pressure for pressure at main (E15)
B17: Pressure at booster pump outlet | E17: =E16+E15 -> 83 | F17: psi | G17: Calculated | M17: and leave meter loss (E19) and loss from tap
B18: Minimum pressure at most remote HOT fixture | E18: 8 | F18: psi | G18: Fixture manufacturer or IPC Table 604.3 (shown below left) | M18: into main (E20) blank
B19: Meter loss (at max flow) | E19: 5 | F19: psi | G19: Meter manufacturer **
B20: Pressure loss from tap into main | E20: 1.61 | F20: psi | G20: 2009 IPC, table E103.3(4) (shown below right) **
B21: Special fixture - backflow preventer | E21: 4 | F21: psi | G21: Item manufacturer
B22: Special fixture - filter | F22: psi | G22: Item manufacturer | L22: Headings
B23: Special fixture - other | F23: psi | G23: Item manufacturer | L23: User Input Cells
B24: Special fixture - other | F24: psi | G24: Item manufacturer | K24: =VLOOKUP('Pressure Losses'!G20+10,Pressure!I31:I50,1) -> 100 | L24: Calculated Values, Constants
B25: Static head loss | E25: =Length!K16 -> 58.022 | F25: psi | G25: Calculated from lengths on "Length" sheet | K25: =HLOOKUP('Pressure Losses'!I20,Pressure!J30:P30,1) -> 2 | L25: Important Values
B26: Total HOT losses and requirements | E26: =SUM(E18:E25) -> 76.632 | F26: psi
B27: Pressure available to overcome pipe friction HOT | E27: =E15+E16-E26 -> 6.368 | F27: psi | I27: Loss of Pressure Through Tap into Water Main
I28: International Plumbing Code Table E103.3(4)
I29: Flow | J29: Size of Tap
B30: Minimum Pressure for Common Fixtures | I30: (GPM) | J30: 0.625 | K30: 0.75 | L30: 1 | M30: 1.25 | N30: 1.5 | O30: 2 | P30: 3
B31: Adapted from International Plumbing Code Table 604.3 | I31: 10 | J31: 1.35 | K31: 0.64 | L31: 0.18 | M31: 0.08
B32: Fixture Type | E32: min pressure | I32: 20 | J32: 5.38 | K32: 2.54 | L32: 0.77 | M32: 0.31 | N32: 0.14
E33: (psi) | I33: 30 | J33: 12.1 | K33: 5.72 | L33: 1.62 | M33: 0.69 | N33: 0.33 | O33: 0.1
B34: Bathtub with balanced pressure and/or thermostatic mixing valve | E34: 20 | I34: 40 | K34: 10.2 | L34: 3.07 | M34: 1.23 | N34: 0.58 | O34: 0.18
I35: 50 | K35: 15.9 | L35: 4.49 | M35: 1.92 | N35: 0.91 | O35: 0.28
B36: Bidet, thermostatic mixing valve | E36: 20 | I36: 60 | L36: 6.46 | M36: 2.76 | N36: 1.31 | O36: 0.4
B37: Combination fixture | E37: 8 | I37: 70 | L37: 8.79 | M37: 3.76 | N37: 1.78 | O37: 0.55 | P37: 0.1
B38: Dishwasher, residential | E38: 8 | I38: 80 | L38: 11.5 | M38: 4.9 | N38: 2.32 | O38: 0.72 | P38: 0.13
B39: Drinking fountain | E39: 8 | I39: 90 | L39: 14.5 | M39: 6.21 | N39: 2.94 | O39: 0.91 | P39: 0.16
B40: Laundry tray | E40: 8 | I40: 100 | L40: 17.94 | M40: 7.67 | N40: 3.63 | O40: 1.12 | P40: 0.21
B41: Lavatory | E41: 8 | I41: 120 | L41: 25.8 | M41: 11 | N41: 5.23 | O41: 1.61 | P41: 0.3
B42: Shower | E42: 8 | I42: 140 | L42: 35.2 | M42: 15 | N42: 7.12 | O42: 2.2 | P42: 0.41
B43: Shower with balanced pressure and/or thermostatic mixing valve | E43: 20 | I43: 150 | M43: 17.2 | N43: 8.16 | O43: 2.52 | P43: 0.47
I44: 160 | M44: 19.6 | N44: 9.3 | O44: 2.92 | P44: 0.54
B45: Sillcock, hose bib | E45: 8 | I45: 180 | M45: 24.8 | N45: 11.8 | O45: 3.62 | P45: 0.68
B46: Sink, residential | E46: 8 | I46: 200 | M46: 30.7 | N46: 14.5 | O46: 4.48 | P46: 0.84
B47: Sink, service | E47: 8 | I47: 225 | M47: 38.8 | N47: 18.4 | O47: 5.6 | P47: 1.06
I48: 250 | M48: 47.9 | N48: 22.7 | O48: 7 | P48: 1.31
I49: 275 | N49: 27.4 | O49: 7.7 | P49: 1.59
I50: 300 | N50: 32.6 | O50: 10.1 | P50: 1.88

Sheet Pressure Losses
B2: 1 | C2: Ensure "Load" and "Length" tabs are filled out correctly. | R2: Headings
C3: * | D3: main to hot/cold Tee (Row 20) is a single section of pipe. It will change depending on flush type because it provides water to both hot and cold sections. | R3: User Input Cells
B4: 2 | C4: Click "Fill Tables" button. This will display vertical demand loads and vertical lengths in table below. (Click again if any "Loads" are changed) | R4: Calculated Values, Constants | W4: 0 | X4: 0 | Y4: 0 | Z4: Flush Tanks
B5: 3 | C5: Under "Cold section", select whether the majority of the cold water system uses flush tanks or flush valves. | R5: Important Values | W5: 0.5 | X5: 0.545 | Y5: 0 | Z5: Flush Valves
C6: * | D6: flush type is necessary to find pressure drop in first section (Row 20), which supplies hot and cold systems. | W6: 0.75 | X6: 0.785 | Y6: 0
B7: 5 | C7: Choose a trial pipe size (Column I) for each line in table below that has a value in the "Demand Load" column. | W7: 1 | X7: 1.015 | Y7: 0.8947765084
B8: 6 | C8: Return to "Pressure" tab and enter "Pressure loss from tap into main" value using Section Flow (G20) in blue near top of table. | Q8: velocity: | W8: 1.25 | X8: 1.265 | Y8: 1.161991824
B9: 7 | C9: Adjust trial pipe size (Column I) until velocities (Column Q) are less than 5 feet per second. | R9: < 5 ft/sec | W9: 1.5 | X9: 1.505 | Y9: 1.419515763
B10: 8 | C10: Enter equivalent length of the fittings found between main and most remote fitting for each section of piping (Column J). | R10: > 5 ft/sec1 (hot) | W10: 2 | X10: 1.985 | Y10: 1.920995835
C11: * | D11: Equivalent lengths can be found by using the table on the Fittings tab, in plumbing codes, or from fitting manufacturers. | R11: > 8 ft/sec2 (cold) | W11: 2.5 | X11: 2.465 | Y11: 2.413757444
B12: 9 | C12: Adjust pipe size until excess pressure found in lower right of table (O46) is a small positive number. | N12: 1 5 ft/sec is maximum velocity of hot water in copper tube allowed by UPC | W12: 3 | X12: 2.945 | Y12: 2.902244821
C13: * | D13: If pipe size is changed, equivalent length of fittings is no longer accurate and should be updated. | N13: 2 8 ft/sec is maximum velocity allowed in copper tube by UPC or recommended by IPC | W13: 4 | X13: 3.425 | Y13: 3.872857472
X14: 3.905
C16: Cold section | F16: Demand Load | G16: Section Flow | H16: length of section | I16: Trial Pipe size | J16: Equiv. Length of fittings | K16: Total Length | L16: Total Length /100 | M16: Friction loss per 100ft | N16: Total friction loss | O16: Excess Pressure | P16: actual
C17: Primarily: | D17: Flush Tanks | P17: tube
P18: ID | Q18: velocity
D19: Hot section | F19: wsfu | G19: (GPM) | H19: (ft) | I19: (in) | J19: (ft) | K19: (ft) | L19: (100ft) | M19: (psi/100ft) | N19: (psi) | O19: (psi) | Q19: (ft/sec)
D20: main to hot/cold Tee | F20: =Ttot -> 553.85 | G20: =VLOOKUP(F20,wsfuGPM!$C$6:$E$58,IF('Pressure Losses'!D17="Flush Tanks",2,3)) -> 105 | H20: =Length!$E$20 -> 54 | I20: 2.5 | J20: 12.5 | K20: =J20+H20 -> 66.5 | L20: =K20/100 -> 0.665 | M20: =0.434*0.2083*POWER(G20,1.852)*POWER(100/150,1.85)/POWER((P20+0.000001),4.8655) -> 2.932693341 | N20: =IFERROR(K20*4.52*POWER(G20,1.85)/POWER(150,1.85)/POWER(VLOOKUP(I20,$W$7:$Y$13,2,0)+0.0000001,4.8655),0) -> 1.927552105 | P20: =VLOOKUP(I20,$W$4:$X$14,2) -> 2.465 | Q20: =0.4085*G20/(P20+0.000001)^2 -> 7.059064666
C21: Vertical | D21: riser up to 1st floor | F21: 78.65000153 | G21: =IF(F21=0,0,VLOOKUP(F21,wsfuGPM!$C$6:$D$58,2)) -> 32 | H21: =Length!$E$18 -> 8 | I21: 2 | J21: 9 | K21: =J21+H21 -> 17 | L21: =K21/100 -> 0.17 | M21: =IFERROR(N21*100/K21,0) -> 1.082428311 | N21: =IFERROR(K21*4.52*POWER(G21,1.85)/POWER(150,1.85)/POWER(VLOOKUP(I21,$W$7:$Y$13,3,0)+0.0000001,4.8655),0) -> 0.1840128128 | P21: =VLOOKUP(I21,$W$4:$Y$14,3) -> 1.920995835 | Q21: =0.4085*G21/(P21+0.000001)^2 -> 3.542327742
D22: riser between 1-2 | F22: 63 | G22: =IF(F22=0,0,VLOOKUP(F22,wsfuGPM!$C$6:$D$58,2)) -> 29.1 | H22: 14 | I22: 2 | J22: 0.5 | K22: =J22+H22 -> 14.5 | L22: 0.145 | M22: =IFERROR(N22*100/K22,0) -> 0.9079746266 | N22: =IFERROR(K22*4.52*POWER(G22,1.85)/POWER(150,1.85)/POWER(VLOOKUP(I22,$W$7:$Y$13,3,0)+0.0000001,4.8655),0) -> 0.1316563209 | P22: =VLOOKUP(I22,$W$4:$Y$14,3) -> 1.920995835 | Q22: =0.4085*G22/(P22+0.000001)^2 -> 3.22130429
D23: riser between 2-3 | F23: 56 | G23: =IF(F23=0,0,VLOOKUP(F23,wsfuGPM!$C$6:$D$58,2)) -> 27.7 | H23: 14 | I23: 2 | J23: 0.5 | K23: =J23+H23 -> 14.5 | L23: 0.145 | M23: 0.8288181548 | N23: 0.1201786324 | P23: =VLOOKUP(I23,$W$4:$Y$14,3) -> 1.920995835 | Q23: =0.4085*G23/(P23+0.000001)^2 -> 3.066327451
D24: riser between 3-4 | F24: 49 | G24: =IF(F24=0,0,VLOOKUP(F24,wsfuGPM!$C$6:$D$58,2)) -> 26.3 | H24: 14 | I24: 2 | J24: 0.5 | K24: =J24+H24 -> 14.5 | L24: 0.145 | M24: 0.7529910555 | N24: 0.109183703 | P24: =VLOOKUP(I24,$W$4:$Y$14,3) -> 1.920995835 | Q24: =0.4085*G24/(P24+0.000001)^2 -> 2.911350613
D25: riser between 4-5 | F25: 42 | G25: =IF(F25=0,0,VLOOKUP(F25,wsfuGPM!$C$6:$D$58,2)) -> 24.9 | H25: 14 | I25: 2 | J25: 0.5 | K25: =J25+H25 -> 14.5 | L25: 0.145 | M25: 0.6805193442 | N25: 0.09867530491 | P25: =VLOOKUP(I25,$W$4:$Y$14,3) -> 1.920995835 | Q25: =0.4085*G25/(P25+0.000001)^2 -> 2.756373774
D26: riser between 5-6 | F26: 35 | G26: =IF(F26=0,0,VLOOKUP(F26,wsfuGPM!$C$6:$D$58,2)) -> 23.3 | H26: 14 | I26: 1.5 | J26: 0.5 | K26: 14.5 | L26: 0.145 | M26: 2.622645994 | N26: 0.3802836692 | P26: 1.419515763 | Q26: 4.723532755
D27: riser between 6-7 | F27: 28 | G27: =IF(F27=0,0,VLOOKUP(F27,wsfuGPM!$C$6:$D$58,2)) -> 19.6 | H27: 14 | I27: 1.5 | J27: 0.5 | K27: 14.5 | L27: 0.145 | M27: 1.904605137 | N27: 0.2761677449 | P27: 1.419515763 | Q27: 3.973443863
D28: riser between 7-8 | F28: 21 | G28: =IF(F28=0,0,VLOOKUP(F28,wsfuGPM!$C$6:$D$58,2)) -> 19.2 | H28: 14 | I28: 1.5 | J28: 0.5 | K28: 14.5 | L28: 0.145 | M28: 1.833320913 | N28: 0.2658315324 | P28: 1.419515763 | Q28: 3.892353172
D29: riser between 8-9 | F29: 14 | G29: =IF(F29=0,0,VLOOKUP(F29,wsfuGPM!$C$6:$D$58,2)) -> 16.5 | H29: 14 | I29: 1.25 | J29: 0.5 | K29: 14.5 | L29: 0.145 | M29: 3.668336538 | N29: 0.531908798 | P29: 1.161991824 | Q29: 4.991937195
D30: riser between 9-10 | F30: 7 | G30: =IF(F30=0,0,VLOOKUP(F30,wsfuGPM!$C$6:$D$58,2)) -> 10.7 | H30: 14 | I30: 1.25 | J30: 5.5 | K30: 19.5 | L30: 0.195 | M30: 1.646204799 | N30: 0.3210099359 | P30: 1.161991824 | Q30: 3.237195635
D31: riser between 10-11 | G31: =IF(F31=0,0,VLOOKUP(F31,wsfuGPM!$C$6:$D$58,2)) -> 0 | K31: 0 | L31: 0 | M31: 0 | N31: 0 | P31: 0 | Q31: 0
D32: riser between 11-12 | G32: =IF(F32=0,0,VLOOKUP(F32,wsfuGPM!$C$6:$D$58,2)) -> 0 | K32: 0 | L32: 0 | M32: 0 | N32: 0 | P32: 0 | Q32: 0
D33: riser between 12-13 | G33: =IF(F33=0,0,VLOOKUP(F33,wsfuGPM!$C$6:$D$58,2)) -> 0 | K33: 0 | L33: 0 | M33: 0 | N33: 0 | P33: 0 | Q33: 0
D34: riser between 13-14 | G34: =IF(F34=0,0,VLOOKUP(F34,wsfuGPM!$C$6:$D$58,2)) -> 0 | K34: 0 | L34: 0 | M34: 0 | N34: 0 | P34: 0 | Q34: 0
D35: riser between 14-15 | G35: =IF(F35=0,0,VLOOKUP(F35,wsfuGPM!$C$6:$D$58,2)) -> 0 | K35: 0 | L35: 0 | M35: 0 | N35: 0 | P35: 0 | Q35: 0
D36: riser between 15-16 | G36: =IF(F36=0,0,VLOOKUP(F36,wsfuGPM!$C$6:$D$58,2)) -> 0 | K36: 0 | L36: 0 | M36: 0 | N36: 0 | P36: 0 | Q36: 0
D37: riser between 16-17 | G37: =IF(F37=0,0,VLOOKUP(F37,wsfuGPM!$C$6:$D$58,2)) -> 0 | K37: 0 | L37: 0 | M37: 0 | N37: 0 | P37: 0 | Q37: 0
D38: riser between 17-18 | G38: =IF(F38=0,0,VLOOKUP(F38,wsfuGPM!$C$6:$D$58,2)) -> 0 | K38: 0 | L38: 0 | M38: 0 | N38: 0 | P38: 0 | Q38: 0
D39: riser between 18-19 | G39: =IF(F39=0,0,VLOOKUP(F39,wsfuGPM!$C$6:$D$58,2)) -> 0 | K39: 0 | L39: 0 | M39: 0 | N39: 0 | P39: 0 | Q39: 0
D40: riser between 19-20 | G40: =IF(F40=0,0,VLOOKUP(F40,wsfuGPM!$C$6:$D$58,2)) -> 0 | K40: 0 | L40: 0 | M40: 0 | N40: 0 | P40: 0 | Q40: 0
G41: =IF(F41=0,0,VLOOKUP(F41,wsfuGPM!$C$6:$D$58,2)) -> 0 | K41: =J41+H41 -> 0 | L41: 0 | M41: 0 | N41: 0 | P41: =VLOOKUP(I41,$W$4:$Y$14,3) -> 0 | Q41: =0.4085*G41/(P41+0.000001)^2 -> 0
C42: Horizontal | D42: =Load!E12 -> Lobby | E42: =Load!E13 -> 1 | F42: =hot -> 15.65 | G42: =IF(F42=0,0,VLOOKUP(F42,wsfuGPM!$C$6:$D$58,2)) -> 17 | H42: =Length!E24 -> 40 | I42: 1.25 | J42: 18 | K42: =J42+H42 -> 58 | L42: 0.58 | M42: =0.434*0.2083*POWER(G42,1.852)*POWER(100/150,1.85)/POWER((P42+0.000001),4.8655) -> 2.585106563 | N42: =IFERROR(K42*4.52*POWER(G42,1.85)/POWER(150,1.85)/POWER(VLOOKUP(I42,$W$7:$Y$13,2,0)+0.0000001,4.8655),0) -> 1.487327078 | O42: =IF(N44=0,IF(N43=0,N42,N43),N44) -> 1.732468551 | P42: =VLOOKUP(I42,$W$4:$X$14,2) -> 1.265 | Q42: =0.4085*G42/(P42+0.000001)^2 -> 4.339695368
D43: =Load!F12 -> one | E43: =Load!F13 -> 9 | F43: =Load!Q43 -> 7 | G43: =IF(F43=0,0,VLOOKUP(F43,wsfuGPM!$C$6:$D$58,2)) -> 10.7 | H43: =Length!E25 -> 40 | I43: 1 | J43: 14.5 | K43: =J43+H43 -> 54.5 | L43: 0.545 | M43: 3.201594433 | N43: 1.732468551 | P43: =VLOOKUP(I43,$W$4:$X$14,2) -> 1.015 | Q43: =0.4085*G43/(P43+0.000001)^2 -> 4.24270561
D44: =Load!G12 -> 0 | E44: =Load!G13 -> 0 | F44: =Load!U43 -> 0 | G44: =IF(F44=0,0,VLOOKUP(F44,wsfuGPM!$C$6:$D$58,2)) -> 0 | H44: =Length!E26 -> 0 | K44: =J44+H44 -> 0 | L44: 0 | M44: 0 | N44: 0 | P44: =VLOOKUP(I44,$W$4:$X$14,2) -> 0 | Q44: =0.4085*G44/(P44+0.000001)^2 -> 0
M45: =Pressure!E27 -> 6.368 | N45: =SUM(O42,N20:N41) -> 6.078929111 | O45: =M45-N45 -> 0.2890708894
M46: Pressure Available | N46: Total Losses | O46: Pressure Remaining | P46: (must be greater than zero)

Sheet EquivLength
U2: 0.5
B3: This tab contains a stand alone calculator to find equivalent lengths of a combination of fittings. | U3: 0.75
B4: *The calculator on this tab is not linked to any other portion of the program. | U4: 1
B5: 1 | C5: Select pipe size in upper yellow cell (E10). | U5: 1.25
B6: 2 | C6: Enter quantity of each type of fitting used in yellow cells (D13:D21). | U6: 1.5
B7: 3 | C7: Column E shows the equivalent length of each type of fitting. | U7: 2
B8: 4 | C8: Total equivalent length of fittings shown will display in blue at the bottom (F23). | U8: 2.5
U9: 3
D10: pipe size: | E10: 0.75 | F10: in | U10: 3.5
B11: Fitting Type | U11: 4
D12: qty. | E12: equiv length (ft)
B13: 90 deg elbow | D13: 3 | E13: =HLOOKUP(pipe,wsfuGPM!$I$13:$R$22,2,FALSE) -> 1.5 | F13: =E13*D13 -> 4.5
B14: 45 deg elbow | E14: =HLOOKUP(pipe,wsfuGPM!$I$13:$R$22,3,FALSE) -> 0.5 | F14: 0 | K14: User Input Cells
B15: Tee, branch | E15: =HLOOKUP(pipe,wsfuGPM!$I$13:$R$22,4,FALSE) -> 2 | F15: 0 | K15: Calculated Values, Constants
B16: Tee, run | E16: =HLOOKUP(pipe,wsfuGPM!$I$13:$R$22,5,FALSE) -> 0 | F16: 0 | K16: Important Values
B17: Coupling | E17: =HLOOKUP(pipe,wsfuGPM!$I$13:$R$22,6,FALSE) -> 0 | F17: 0
B18: Ball Valve | E18: =HLOOKUP(pipe,wsfuGPM!$I$13:$R$22,7,FALSE) -> 0 | F18: 0
B19: Gate Valve | E19: =HLOOKUP(pipe,wsfuGPM!$I$13:$R$22,8,FALSE) -> 0 | F19: 0
B20: Butterfly Valve | E20: =HLOOKUP(pipe,wsfuGPM!$I$13:$R$22,9,FALSE) -> 0 | F20: 0
B21: Check Valve | E21: =HLOOKUP(pipe,wsfuGPM!$I$13:$R$22,10,FALSE) -> 2.5 | F21: 0
B22: Equivalent length of listed fittings:
F23: =SUM(F13:F21) -> 4.5 | G23: ft

Sheet Labor&Material
B1: Enter cost in applicable yellow cells. Enter Multiplier in top right of each table.
B2: For any blank cell, the default value will be used in cost comparison calculations
B3: Multipliers affect everything in that table (even user defined values).
B4: Material Costs | I4: Labor Costs
B5: Tubing Cost | D5: =IF(SUM(E8:E13)=0,"Default Viega Value","Contractor Price Calculation") -> Default Viega Value | G5: Multiplier: | I5: Tubing Installation | K5: =IF(SUM(L8:L13)=0,"Default Viega Value","Contractor Price Calculation") -> Default Viega Value | N5: Multiplier:
B6: Description | C6: Tube | D6: Cost of Tubing | G6: 1 | I6: Description | J6: Tube | K6: Labor Costs | N6: 1
C7: Size | D7: Default | E7: User Defined | F7: Calculation | G7: Notes: | J7: Size | K7: Default | L7: User Defined | M7: Calculation | N7: Notes:
B8: PEX | C8: 3/8" PEX | D8: =Prices!K14 -> 0.5506 | F8: =IF(E8<>0,E8,D8)*$G$6 -> 0.5506 | I8: Installation Cost PEX | J8: 3/8" PEX | K8: =Prices!L14 -> 1.6 | M8: =IF(L8<>0,L8,K8)*$N$6 -> 1.6 | N8: PHCC Labor Calculator III labor times for one tee and 10 linear feet of copper tube @ $40.00 labor rate used.
B9: Copper Tube | C9: 1/2" | D9: =Prices!K5 -> 1.37 | F9: =IF(E9<>0,E9,D9)*$G$6 -> 1.37 | I9: Installation Cost Copper | J9: 1/2" | K9: =Prices!L5 -> 6.528 | M9: =IF(L9<>0,L9,K9)*$N$6 -> 6.528
B10: Copper Tube | C10: 3/4" | D10: =Prices!K6 -> 2.23 | F10: =IF(E10<>0,E10,D10)*$G$6 -> 2.23 | I10: Installation Cost Copper | J10: 3/4" | K10: =Prices!L6 -> 8.976 | M10: 8.976
B11: Copper Tube | C11: 1" | D11: =Prices!K7 -> 3.32 | F11: 3.32 | I11: Installation Cost Copper | J11: 1" | K11: =Prices!L7 -> 9.792 | M11: 9.792
B12: Copper Tube | C12: 1-1/4" | D12: =Prices!K8 -> 4.69 | F12: 4.69 | I12: Installation Cost Copper | J12: 1-1/4" | K12: =Prices!L8 -> 11.424 | M12: 11.424
B13: Copper Tube | C13: 1-1/2" | D13: =Prices!K9 -> 6.07 | F13: 6.07 | I13: Installation Cost Copper | J13: 1-1/2" | K13: =Prices!L9 -> 13.872 | M13: 13.872
B14: Copper Tube | C14: 2" | D14: =Prices!K10 -> 9.46 | F14: 9.46 | I14: Installation Cost Copper | J14: 2" | K14: =Prices!L10 -> 15.912 | M14: 15.912
B15: Copper Tube | C15: 2-1/2" | D15: =Prices!K11 -> 13.95 | F15: 13.95 | I15: Installation Cost Copper | J15: 2-1/2" | K15: =Prices!L11 -> 19.584 | M15: 19.584
B16: Copper Tube | C16: 3" | D16: =Prices!K12 -> 19.88 | F16: 19.88 | I16: Installation Cost Copper | J16: 3" | K16: =Prices!L12 -> 23.256 | M16: 23.256
B17: Copper Tube | C17: 4" | D17: =Prices!K13 -> 31.35 | F17: 31.35 | I17: Installation Cost Copper | J17: 4" | K17: =Prices!L13 -> 31.008 | M17: 31.008
B18: Pipe Insulation | D18: =IF(SUM(E21:E26)=0,"Default Viega Value","Contractor Price Calculation") -> Default Viega Value | G18: Multiplier: | I18: Insulation Installation | K18: =IF(SUM(L21:L26)=0,"Default Viega Value","Contractor Price Calculation") -> Default Viega Value | N18: Multiplier:
B19: Description | C19: Tube | D19: Material Costs | G19: 1 | I19: Description | J19: Tube | K19: Material Costs | N19: 1
C20: Size | D20: Default | E20: User Defined | F20: Calculation | G20: Notes: | J20: Size | K20: Default | L20: User Defined | M20: Calculation | N20: Notes:
B21: Insulation | C21: 1/2" | D21: =Prices!L28 -> 1.316 | F21: =IF(E21<>0,E21,D21)*$G$19 -> 1.316 | G21: List Price for NH Armaflex 3/4" nominal wall, split pipe insulation. | I21: Insulation Labor | J21: 1/2" | K21: =Prices!M5 -> 1.2 | M21: =IF(L21<>0,L21,K21)*$N$19 -> 1.2 | N21: $40 per hour multiplied by PHCC Labor Calculator III times for installing split insulation at the same time as pipe installation.
B22: Insulation | C22: 3/4" | D22: =Prices!L29 -> 1.579 | F22: =IF(E22<>0,E22,D22)*$G$19 -> 1.579 | I22: Insulation Labor | J22: 3/4" | K22: =Prices!M6 -> 1.2 | M22: =IF(L22<>0,L22,K22)*$N$19 -> 1.2
B23: Insulation | C23: 1" | D23: =Prices!L30 -> 1.933 | F23: 1.933 | I23: Insulation Labor | J23: 1" | K23: =Prices!M7 -> 1.6 | M23: 1.6
B24: Insulation | C24: 1-1/4" | D24: =Prices!L31 -> 2.196 | F24: 2.196 | I24: Insulation Labor | J24: 1-1/4" | K24: =Prices!M8 -> 1.6 | M24: 1.6
B25: Insulation | C25: 1-1/2" | D25: =Prices!L32 -> 2.906 | F25: 2.906 | I25: Insulation Labor | J25: 1-1/2" | K25: =Prices!M9 -> 2 | M25: 2
B26: Insulation | C26: 2" | D26: =Prices!L33 -> 3.581 | F26: 3.581 | I26: Insulation Labor | J26: 2" | K26: =Prices!M10 -> 2 | M26: 2
B27: Insulation | C27: 2-1/2" | D27: =Prices!L34 -> 4.244 | F27: 4.244 | I27: Insulation Labor | J27: 2-1/2" | K27: =Prices!M11 -> 2.4 | M27: 2.4
B28: Insulation | C28: 3" | D28: =Prices!L35 -> 5.409 | F28: 5.409 | I28: Insulation Labor | J28: 3" | K28: =Prices!M12 -> 2.4 | M28: 2.4
B29: Insulation | C29: 4" | D29: =Prices!L36 -> 6.847 | F29: 6.847 | I29: Insulation Labor | J29: 4" | K29: =Prices!M13 -> 2.4 | M29: 2.4
B30: Pipe Hangers | D30: =IF(SUM(E33:E38)=0,"Default Viega Value","Contractor Price Calculation") -> Default Viega Value | G30: Multiplier: | I30: Hanger Installation | K30: =IF(SUM(L33:L38)=0,"Default Viega Value","Contractor Price Calculation") -> Default Viega Value | N30: Multiplier:
B31: Description | C31: Tube | D31: Hanger Costs | G31: 1 | I31: Description | J31: Tube | K31: Hanger Costs | N31: 1
C32: Size | D32: Default | E32: User Defined | F32: Calculation | G32: Notes: | J32: Size | K32: Default | L32: User Defined | M32: Calculation | N32: Notes:
B33: Pipe Hangers | C33: 1/2" | D33: =Prices!L19 -> 1.21 | F33: =IF(E33<>0,E33,D33)*$G$31 -> 1.21 | G33: Default price is for Anvil copper plated swivel loop hangers. | I33: Pipe Hangers | J33: 1/2" | K33: =Prices!N5 -> 4 | M33: =IF(L33<>0,L33,K33)*$N$31 -> 4 | N33: Does not include labor for drilling anchors if needed.
B34: Pipe Hangers | C34: 3/4" | D34: =Prices!L20 -> 1.21 | F34: =IF(E34<>0,E34,D34)*$G$31 -> 1.21 | I34: Pipe Hangers | J34: 3/4" | K34: =Prices!N6 -> 4 | M34: =IF(L34<>0,L34,K34)*$N$31 -> 4
B35: Pipe Hangers | C35: 1" | D35: =Prices!L21 -> 1.21 | F35: 1.21 | I35: Pipe Hangers | J35: 1" | K35: =Prices!N7 -> 3.32 | M35: 3.32
B36: Pipe Hangers | C36: 1-1/4" | D36: =Prices!L22 -> 1.21 | F36: 1.21 | I36: Pipe Hangers | J36: 1-1/4" | K36: =Prices!N8 -> 2.856 | M36: 2.856
B37: Pipe Hangers | C37: 1-1/2" | D37: =Prices!L23 -> 1.3 | F37: 1.3 | I37: Pipe Hangers | J37: 1-1/2" | K37: =Prices!N9 -> 2.5 | M37: 2.5
B38: Pipe Hangers | C38: 2" | D38: =Prices!L24 -> 1.3 | F38: 1.3 | I38: Pipe Hangers | J38: 2" | K38: =Prices!N10 -> 2.5 | M38: 2.5
B39: Pipe Hangers | C39: 2-1/2" | D39: =Prices!L25 -> 3.3 | F39: 3.3 | I39: Pipe Hangers | J39: 2-1/2" | K39: =Prices!N11 -> 2.668 | M39: 2.668
B40: Pipe Hangers | C40: 3" | D40: =Prices!L26 -> 3.66 | F40: 3.66 | I40: Pipe Hangers | J40: 3" | K40: =Prices!N12 -> 2.4 | M40: 2.4
B41: Pipe Hangers | C41: 4" | D41: =Prices!L27 -> 4.94 | F41: 4.94 | I41: Pipe Hangers | J41: 4" | K41: =Prices!N13 -> 2.332 | M41: 2.332
B42: Fire Stop | D42: =IF(SUM(E45:E50)=0,"Default Viega Value","Contractor Price Calculation") -> Default Viega Value | G42: Multiplier: | I42: Coring | K42: =IF(SUM(L45:L50)=0,"Default Viega Value","Contractor Price Calculation") -> Default Viega Value | N42: Multiplier:
B43: Description | C43: Tube | D43: Total Costs | G43: 1 | I43: Description | J43: Tube | K43: Labor Costs | N43: 1
C44: Size | D44: Default | E44: User Defined | F44: Calculation | G44: Notes: | J44: Size | K44: Default | L44: User Defined | M44: Calculation | N44: Notes:
B45: Fire Stop | C45: 1/2" | D45: =Prices!L37 -> 26.3 | F45: =IF(E45<>0,E45,D45)*$G$43 -> 26.3 | I45: Coring | J45: 1/2" | K45: =Prices!L46 -> 45 | M45: =IF(L45<>0,L45,K45)*$N$43 -> 45
B46: Fire Stop | C46: 3/4" | D46: =Prices!L38 -> 26.3 | F46: 26.3 | I46: Coring | J46: 3/4" | K46: =Prices!L47 -> 45 | M46: 45
B47: Fire Stop | C47: 1" | D47: =Prices!L39 -> 20 | F47: 20 | I47: Coring | J47: 1" | K47: =Prices!L48 -> 45 | M47: 45
B48: Fire Stop | C48: 1-1/4" | D48: =Prices!L40 -> 27.8 | F48: 27.8 | I48: Coring | J48: 1-1/4" | K48: =Prices!L49 -> 45 | M48: 45
B49: Fire Stop | C49: 1-1/2" | D49: =Prices!L41 -> 28.3 | F49: 28.3 | I49: Coring | J49: 1-1/2" | K49: =Prices!L50 -> 45 | M49: 45
B50: Fire Stop | C50: 2" | D50: =Prices!L42 -> 30 | F50: 30 | I50: Coring | J50: 2" | K50: =Prices!L51 -> 45 | M50: 45
B51: Fire Stop | C51: 2-1/2" | D51: =Prices!L43 -> 33 | F51: 33 | I51: Coring | J51: 2-1/2" | K51: =Prices!L52 -> 45 | M51: 45
B52: Fire Stop | C52: 3" | D52: =Prices!L44 -> 36.4 | F52: 36.4 | I52: Coring | J52: 3" | K52: =Prices!L53 -> 45 | M52: 45
B53: Fire Stop | C53: 4" | D53: =Prices!L45 -> 39.6 | F53: 39.6 | I53: Coring | J53: 4" | K53: =Prices!L54 -> 45 | M53: 45

Sheet Fittings
G2: This sheet shows a comparison of installation costs between a SmartLoop recirculation system and a parallel system.
G3: The table on the right uses tube sizes selected on "Pressure Losses" tab to find the correct size tee for each floor.
K4: H | L4: I | M4: D | N4: E | P4: T | Q4: H | R4: I | S4: S | T4: SmartLoop | X4: Parallel
C5: SmartLoop | G5: Parallel | K5: VBA Output | N5: num to Text w/o zeros | Q5: Parallel Tees | T5: Size of | U5: Stock Number | V5: cost per | W5: cost per | X5: Size of | Y5: Stock Number | Z5: cost per | AA5: cost per
C6: tube | E6: material | G6: tube | H6: material | K6: run | L6: run | M6: branch | N6: run | O6: run | P6: branch | Q6: run | R6: run | S6: branch | T6: Tees | V6: each | W6: fitting | X6: Fitting | Z6: each | AA6: fitting
B7: num | C7: size | D7: parallel | E7: cost | F7: length | G7: size | H7: cost | K7: 1 | L7: ='Pressure Losses'!I21 -> 2 | M7: =L7 -> 2 | N7: =VLOOKUP(K7,$B$9:$C$13,2,FALSE) -> 1" | O7: =IF(L7=0,"1""",VLOOKUP(L7,$B$9:$C$13,2,FALSE)) -> 2" | P7: =VLOOKUP(M7,$B$9:$C$13,2,FALSE) -> 2" | R7: =VLOOKUP(L7,$B$9:$D$13,IF(L7<=M7,2,3),FALSE) -> 2" | S7: =R7 -> 2" | T7: =O7&"x"&N7&"x"&P7 -> 2"x1"x2" | U7: =IFERROR(VLOOKUP(T7,Prices!$B$6:$F$85,2,FALSE),"") -> 77477 / 78112 | V7: =VLOOKUP(T7,Prices!$B$6:$F$85,3,FALSE) -> 89.9 | W7: =IF(ISNUMBER(V7)=TRUE,V7,0) -> 89.9 | X7: =R7&"x"&S7 -> 2"x2" | Y7: =VLOOKUP(X7,Prices!$B$93:$F$98,2,FALSE) -> 77342 | Z7: =VLOOKUP(X7,Prices!$B$93:$F$98,3,FALSE) -> 63.18 | AA7: =IF(ISNUMBER(Z7)=TRUE,Z7,0) -> 63.18
B8: size | C8: (inches) | E8: USD | F8: (ft) | G8: (inches) | H8: USD | K8: 2 | L8: 2 | M8: 1.25 | N8: =VLOOKUP(K8,$B$9:$C$13,2,FALSE) -> 2" | O8: =IF(L8=0,"1""",VLOOKUP(L8,$B$9:$C$13,2,FALSE)) -> 2" | P8: =VLOOKUP(M8,$B$9:$C$13,2,FALSE) -> 1-1/4" | Q8: =VLOOKUP(K8,$B$9:$D$13,IF(K8<=M8,2,3),FALSE) -> 1-1/2" | R8: =VLOOKUP(L8,$B$9:$D$13,IF(L8<=M8,2,3),FALSE) -> 1-1/2" | S8: =P8 -> 1-1/4" | T8: =IFERROR(N8&"x"&O8&"x"&P8,"") -> 2"x2"x1-1/4" | U8: =IFERROR(VLOOKUP(T8,Prices!$B$6:$F$85,2,FALSE),"") -> 77487 | V8: =VLOOKUP(T8,Prices!$B$6:$F$85,3,FALSE) -> 83.59 | W8: 83.59 | X8: =IF(L8=0,(N8&"x"&S8&"x"&S8),(N8&"x"&R8&"x"&S8)) -> 2"x1-1/2"x1-1/4" | Y8: =IFERROR(VLOOKUP(X8,Prices!$B$6:$F$85,2,FALSE),"") -> 15508 | Z8: =VLOOKUP(X8,Prices!$B$6:$F$85,3,FALSE) -> 101.38 | AA8: =IF(ISNUMBER(Z8)=TRUE,Z8,0) -> 101.38
B9: 0.75 | C9: 3/4" | D9: 3/4" | F9: =F17+1 -> 135 | G9: =D17 -> 3/4" | H9: =F9*VLOOKUP(D9,'Labor&Material'!$C$8:$F$17,4,FALSE) -> 301.05 | K9: 2 | L9: 2 | M9: 1 | N9: 2" | O9: 2" | P9: 1" | Q9: =VLOOKUP(K9,$B$9:$D$13,IF(K9<=M9,2,3),FALSE) -> 1-1/2" | R9: =VLOOKUP(L9,$B$9:$D$13,IF(L9<=M9,2,3),FALSE) -> 1-1/2" | S9: 1" | T9: 2"x2"x1" | U9: =IFERROR(VLOOKUP(T9,Prices!$B$6:$F$85,2,FALSE),"") -> 94772 | V9: =VLOOKUP(T9,Prices!$B$6:$F$85,3,FALSE) -> 83.59 | W9: 83.59 | X9: =IFERROR(IF(L9=0,(Q9&"x"&S9&"x"&S9),(Q9&"x"&R9&"x"&S9)),"") -> 1-1/2"x1-1/2"x1" | Y9: =IFERROR(VLOOKUP(X9,Prices!$B$6:$F$85,2,FALSE),"") -> 77467 | Z9: =VLOOKUP(X9,Prices!$B$6:$F$85,3,FALSE) -> 50.56 | AA9: 50.56
B10: 1 | C10: 1" | D10: 3/4" | E10: =F10*VLOOKUP(C10,'Labor&Material'!$C$8:$F$17,4,FALSE) -> 0 | F10: =SUMIF('Pressure Losses'!$I$21:$I$40,B10,'Pressure Losses'!$H$21:$H$40) -> 0 | G10: =D10 -> 3/4" | H10: =F10*VLOOKUP(D10,'Labor&Material'!$C$8:$F$17,4,FALSE) -> 0 | K10: 2 | L10: 2 | M10: 1 | N10: 2" | O10: 2" | P10: 1" | Q10: 1-1/2" | R10: 1-1/2" | S10: 1" | T10: 2"x2"x1" | U10: =IFERROR(VLOOKUP(T10,Prices!$B$6:$F$85,2,FALSE),"") -> 94772 | V10: =VLOOKUP(T10,Prices!$B$6:$F$85,3,FALSE) -> 83.59 | W10: 83.59 | X10: =IFERROR(IF(L10=0,(Q10&"x"&S10&"x"&S10),(Q10&"x"&R10&"x"&S10)),"") -> 1-1/2"x1-1/2"x1" | Y10: =IFERROR(VLOOKUP(X10,Prices!$B$6:$F$85,2,FALSE),"") -> 77467 | Z10: =VLOOKUP(X10,Prices!$B$6:$F$85,3,FALSE) -> 50.56 | AA10: 50.56
B11: 1.25 | C11: 1-1/4" | D11: 1" | E11: =F11*VLOOKUP(C11,'Labor&Material'!$C$8:$F$17,4,FALSE) -> 131.32 | F11: =SUMIF('Pressure Losses'!$I$21:$I$40,B11,'Pressure Losses'!$H$21:$H$40) -> 28 | G11: 1" | H11: =F11*VLOOKUP(D11,'Labor&Material'!$C$8:$F$17,4,FALSE) -> 92.96 | K11: 2 | L11: 2 | M11: 1 | N11: 2" | O11: 2" | P11: 1" | Q11: 1-1/2" | R11: 1-1/2" | S11: 1" | T11: 2"x2"x1" | U11: =IFERROR(VLOOKUP(T11,Prices!$B$6:$F$85,2,FALSE),"") -> 94772 | V11: =VLOOKUP(T11,Prices!$B$6:$F$85,3,FALSE) -> 83.59 | W11: 83.59 | X11: 1-1/2"x1-1/2"x1" | Y11: =IFERROR(VLOOKUP(X11,Prices!$B$6:$F$85,2,FALSE),"") -> 77467 | Z11: =VLOOKUP(X11,Prices!$B$6:$F$85,3,FALSE) -> 50.56 | AA11: 50.56
B12: 1.5 | C12: 1-1/2" | D12: 1-1/4" | E12: =F12*VLOOKUP(C12,'Labor&Material'!$C$8:$F$17,4,FALSE) -> 254.94 | F12: =SUMIF('Pressure Losses'!$I$21:$I$40,B12,'Pressure Losses'!$H$21:$H$40) -> 42 | G12: 1-1/4" | H12: =F12*VLOOKUP(D12,'Labor&Material'!$C$8:$F$17,4,FALSE) -> 196.98 | K12: 2 | L12: 1.5 | M12: 1 | N12: 2" | O12: 1-1/2" | P12: 1" | Q12: 1-1/2" | R12: 1-1/4" | S12: 1" | T12: 2"x1-1/2"x1" | U12: =IFERROR(VLOOKUP(T12,Prices!$B$6:$F$85,2,FALSE),"") -> 15498 | V12: =VLOOKUP(T12,Prices!$B$6:$F$85,3,FALSE) -> 98.14 | W12: 98.14 | X12: 1-1/2"x1-1/4"x1" | Y12: =IFERROR(VLOOKUP(X12,Prices!$B$6:$F$85,2,FALSE),"") -> 15453 | Z12: =VLOOKUP(X12,Prices!$B$6:$F$85,3,FALSE) -> 70.53 | AA12: 70.53
B13: 2 | C13: 2" | D13: 1-1/2" | E13: =F13*VLOOKUP(C13,'Labor&Material'!$C$8:$F$17,4,FALSE) -> 605.44 | F13: =SUMIF('Pressure Losses'!$I$21:$I$40,B13,'Pressure Losses'!$H$21:$H$40) -> 64 | G13: 1-1/2" | H13: =F13*VLOOKUP(D13,'Labor&Material'!$C$8:$F$17,4,FALSE) -> 388.48 | K13: 1.5 | L13: 1.5 | M13: 1 | N13: 1-1/2" | O13: 1-1/2" | P13: 1" | Q13: 1-1/4" | R13: 1-1/4" | S13: 1" | T13: 1-1/2"x1-1/2"x1" | U13: =IFERROR(VLOOKUP(T13,Prices!$B$6:$F$85,2,FALSE),"") -> 77467 | V13: =VLOOKUP(T13,Prices!$B$6:$F$85,3,FALSE) -> 50.56 | W13: 50.56 | X13: 1-1/4"x1-1/4"x1" | Y13: =IFERROR(VLOOKUP(X13,Prices!$B$6:$F$85,2,FALSE),"") -> 77447 | Z13: =VLOOKUP(X13,Prices!$B$6:$F$85,3,FALSE) -> 27.4 | AA13: 27.4
B14: 2.5 | C14: 2-1/2" | D14: 2" | E14: =F14*VLOOKUP(C14,'Labor&Material'!$C$8:$F$17,4,FALSE) -> 0 | F14: =SUMIF('Pressure Losses'!$I$21:$I$40,B14,'Pressure Losses'!$H$21:$H$40) -> 0 | G14: 2" | H14: =F14*VLOOKUP(D14,'Labor&Material'!$C$8:$F$17,4,FALSE) -> 0 | K14: 1.5 | L14: 1.5 | M14: 1 | N14: 1-1/2" | O14: 1-1/2" | P14: 1" | Q14: 1-1/4" | R14: 1-1/4" | S14: 1" | T14: 1-1/2"x1-1/2"x1" | U14: =IFERROR(VLOOKUP(T14,Prices!$B$6:$F$85,2,FALSE),"") -> 77467 | V14: =VLOOKUP(T14,Prices!$B$6:$F$85,3,FALSE) -> 50.56 | W14: 50.56 | X14: 1-1/4"x1-1/4"x1" | Y14: =IFERROR(VLOOKUP(X14,Prices!$B$6:$F$85,2,FALSE),"") -> 77447 | Z14: =VLOOKUP(X14,Prices!$B$6:$F$85,3,FALSE) -> 27.4 | AA14: 27.4
B15: 3 | C15: 3" | D15: 2-1/2" | E15: =F15*VLOOKUP(C15,'Labor&Material'!$C$8:$F$17,4,FALSE) -> 0 | F15: =SUMIF('Pressure Losses'!$I$21:$I$40,B15,'Pressure Losses'!$H$21:$H$40) -> 0 | G15: 2-1/2" | H15: =F15*VLOOKUP(D15,'Labor&Material'!$C$8:$F$17,4,FALSE) -> 0 | K15: 1.5 | L15: 1.25 | M15: 1 | N15: 1-1/2" | O15: 1-1/4" | P15: 1" | Q15: 1-1/4" | R15: 1" | S15: 1" | T15: 1-1/2"x1-1/4"x1" | U15: =IFERROR(VLOOKUP(T15,Prices!$B$6:$F$85,2,FALSE),"") -> 15453 | V15: =VLOOKUP(T15,Prices!$B$6:$F$85,3,FALSE) -> 70.53 | W15: 70.53 | X15: 1-1/4"x1"x1" | Y15: =IFERROR(VLOOKUP(X15,Prices!$B$6:$F$85,2,FALSE),"") -> 14568 | Z15: =VLOOKUP(X15,Prices!$B$6:$F$85,3,FALSE) -> 31.02 | AA15: 31.02
B16: 4 | C16: 4" | D16: 3" | E16: =F16*VLOOKUP(C16,'Labor&Material'!$C$8:$F$17,4,FALSE) -> 0 | F16: =SUMIF('Pressure Losses'!$I$21:$I$40,B16,'Pressure Losses'!$H$21:$H$40) -> 0 | G16: 3" | H16: =F16*VLOOKUP(D16,'Labor&Material'!$C$8:$F$17,4,FALSE) -> 0 | K16: 1.25 | L16: 1.25 | M16: 1 | N16: 1-1/4" | O16: 1-1/4" | P16: 1" | Q16: 1" | R16: 1" | S16: 1" | T16: 1-1/4"x1-1/4"x1" | U16: =IFERROR(VLOOKUP(T16,Prices!$B$6:$F$85,2,FALSE),"") -> 77447 | V16: =VLOOKUP(T16,Prices!$B$6:$F$85,3,FALSE) -> 27.4 | W16: 27.4 | X16: 1"x1"x1" | Y16: =IFERROR(VLOOKUP(X16,Prices!$B$6:$F$85,2,FALSE),"") -> 77412 | Z16: =VLOOKUP(X16,Prices!$B$6:$F$85,3,FALSE) -> 43.49 | AA16: 43.49
B17: 3/8" PEX | C17: 3/8" PEX | D17: 3/4" | E17: =F17*VLOOKUP(C17,'Labor&Material'!$C$8:$F$17,4,FALSE) -> 73.7804 | F17: =SUM(F11:F16) -> 134 | K17: 1.25 | L17: 0 | M17: 1 | N17: 1-1/4" | O17: 1" | P17: 1" | Q17: 1" | S17: 1" | T17: 1-1/4"x1"x1" | U17: =IFERROR(VLOOKUP(T17,Prices!$B$6:$F$85,2,FALSE),"") -> 14568 | V17: =VLOOKUP(T17,Prices!$B$6:$F$85,3,FALSE) -> 31.02 | W17: 31.02 | X17: 1"x1"x1" | Y17: =IFERROR(VLOOKUP(X17,Prices!$B$6:$F$85,2,FALSE),"") -> 77412 | Z17: =VLOOKUP(X17,Prices!$B$6:$F$85,3,FALSE) -> 43.49 | AA17: 43.49
O18: 1" | T18: =IFERROR(N18&"x"&O18&"x"&P18,"") ->  | U18: =IFERROR(VLOOKUP(T18,Prices!$B$6:$F$85,2,FALSE),"") ->  | V18: =VLOOKUP(T18,Prices!$B$6:$F$85,3,FALSE) ->  | W18: 0 | Y18: =IFERROR(VLOOKUP(X18,Prices!$B$6:$F$85,2,FALSE),"") ->  | Z18: =VLOOKUP(X18,Prices!$B$6:$F$85,3,FALSE) ->  | AA18: 0
E19: =SUM(E10:E17) -> 1065.4804 | F19: Total tubing cost | H19: =SUM(H9:H16) -> 979.47 | O19: 1" | T19: =IFERROR(N19&"x"&O19&"x"&P19,"") ->  | U19: =IFERROR(VLOOKUP(T19,Prices!$B$6:$F$85,2,FALSE),"") ->  | V19: =VLOOKUP(T19,Prices!$B$6:$F$85,3,FALSE) ->  | W19: 0 | Y19: =IFERROR(VLOOKUP(X19,Prices!$B$6:$F$85,2,FALSE),"") ->  | Z19: =VLOOKUP(X19,Prices!$B$6:$F$85,3,FALSE) ->  | AA19: 0
E20: =SUM(W7:W27)*'Labor&Material'!G6 -> 752.47 | F20: Total fitting cost | H20: =SUM(AA7:AA31)*'Labor&Material'!G6 -> 580.83 | O20: 1" | U20: =IFERROR(VLOOKUP(T20,Prices!$B$6:$F$85,2,FALSE),"") ->  | V20: =VLOOKUP(T20,Prices!$B$6:$F$85,3,FALSE) ->  | W20: 0 | Y20: =IFERROR(VLOOKUP(X20,Prices!$B$6:$F$85,2,FALSE),"") ->  | Z20: =VLOOKUP(X20,Prices!$B$6:$F$85,3,FALSE) ->  | AA20: 0
E21: =Prices!D5*'Labor&Material'!G6 -> 93.62 | F21: SmartLoop Kit | H21: 0 | O21: 1" | U21: =IFERROR(VLOOKUP(T21,Prices!$B$6:$F$85,2,FALSE),"") ->  | V21: =VLOOKUP(T21,Prices!$B$6:$F$85,3,FALSE) ->  | W21: 0 | Y21: =IFERROR(VLOOKUP(X21,Prices!$B$6:$F$85,2,FALSE),"") ->  | Z21: =VLOOKUP(X21,Prices!$B$6:$F$85,3,FALSE) ->  | AA21: 0
E22: =F17*'Labor&Material'!M8+SUMPRODUCT(F10:F16,'Labor&Material'!M11:M17) -> 2135.264 | F22: Tubing installation | H22: =F9*'Labor&Material'!M10+SUMPRODUCT(F10:F16,'Labor&Material'!M10:M16) -> 2853.552 | O22: 1" | U22: =IFERROR(VLOOKUP(T22,Prices!$B$6:$F$85,2,FALSE),"") ->  | V22: =VLOOKUP(T22,Prices!$B$6:$F$85,3,FALSE) ->  | W22: 0 | Y22: =IFERROR(VLOOKUP(X22,Prices!$B$6:$F$85,2,FALSE),"") ->  | Z22: =VLOOKUP(X22,Prices!$B$6:$F$85,3,FALSE) ->  | AA22: 0
E23: =SUMPRODUCT(Fittings!P32:P40,'Labor&Material'!F45:F53) -> 290.5 | F23: Fire Stops | H23: =SUMPRODUCT(Fittings!Q32:Q40,'Labor&Material'!F45:F53) -> 527.9 | O23: 1" | U23: =IFERROR(VLOOKUP(T23,Prices!$B$6:$F$85,2,FALSE),"") ->  | V23: =VLOOKUP(T23,Prices!$B$6:$F$85,3,FALSE) ->  | W23: 0 | Y23: =IFERROR(VLOOKUP(X23,Prices!$B$6:$F$85,2,FALSE),"") ->  | Z23: =VLOOKUP(X23,Prices!$B$6:$F$85,3,FALSE) ->  | AA23: 0
E24: =250+SUMPRODUCT(P32:P40,'Labor&Material'!M45:M53) -> 700 | F24: Coring | H24: =250+SUMPRODUCT(Q32:Q40,'Labor&Material'!M45:M53) -> 1150 | O24: 1" | U24: =IFERROR(VLOOKUP(T24,Prices!$B$6:$F$85,2,FALSE),"") ->  | V24: =VLOOKUP(T24,Prices!$B$6:$F$85,3,FALSE) ->  | W24: 0 | Y24: =IFERROR(VLOOKUP(X24,Prices!$B$6:$F$85,2,FALSE),"") ->  | Z24: =VLOOKUP(X24,Prices!$B$6:$F$85,3,FALSE) ->  | AA24: 0
E25: =SUMPRODUCT(Fittings!F10:F16,'Labor&Material'!F35:F41)+SUMPRODUCT(F10:F16,'Labor&Material'!M35:M41) -> 516.648 | F25: Hangers | H25: =F9*'Labor&Material'!F34+SUMPRODUCT(Fittings!F10:F16,'Labor&Material'!F35:F41)+SUMPRODUCT(F10:F16,'Labor&Material'!M35:M41) -> 679.998 | O25: 1" | U25: =IFERROR(VLOOKUP(T25,Prices!$B$6:$F$85,2,FALSE),"") ->  | V25: =VLOOKUP(T25,Prices!$B$6:$F$85,3,FALSE) ->  | W25: 0 | Y25: =IFERROR(VLOOKUP(X25,Prices!$B$6:$F$85,2,FALSE),"") ->  | Z25: =VLOOKUP(X25,Prices!$B$6:$F$85,3,FALSE) ->  | AA25: 0
E26: =SUMPRODUCT(F10:F16,'Labor&Material'!F23:F29)+SUMPRODUCT(F10:F16,'Labor&Material'!M23:M29) -> 669.524 | F26: Insulation | H26: =F9*'Labor&Material'!F22+SUMPRODUCT(Fittings!F10:F16,'Labor&Material'!F22:F28)+SUMPRODUCT(Fittings!F10:F16,'Labor&Material'!M22:M28) -> 785.505 | O26: 1" | U26: =IFERROR(VLOOKUP(T26,Prices!$B$6:$F$85,2,FALSE),"") ->  | V26: =VLOOKUP(T26,Prices!$B$6:$F$85,3,FALSE) ->  | W26: 0 | Y26: =IFERROR(VLOOKUP(X26,Prices!$B$6:$F$85,2,FALSE),"") ->  | Z26: =VLOOKUP(X26,Prices!$B$6:$F$85,3,FALSE) ->  | AA26: 0
O27: 1" | U27: =IFERROR(VLOOKUP(T27,Prices!$B$6:$F$85,2,FALSE),"") ->  | V27: =VLOOKUP(T27,Prices!$B$6:$F$85,3,FALSE) ->  | W27: 0 | Y27: =IFERROR(VLOOKUP(X27,Prices!$B$6:$F$85,2,FALSE),"") ->  | Z27: =VLOOKUP(X27,Prices!$B$6:$F$85,3,FALSE) ->  | AA27: 0
E28: =SUM(E19:E26) -> 6223.5064 | F28: Total | H28: =SUM(H19:H26) -> 7557.255
M29: =INDEX(M8:M27,MATCH(9.99999999999999E+307,M8:M27)) -> 1 | P29: 1" | U29: reducer: | X29: =P29&"x3/4""" -> 1"x3/4" | Y29: =VLOOKUP(X29,Prices!$B$99:$F$109,2,FALSE) -> 78087 | Z29: =VLOOKUP(X29,Prices!$B$99:$F$109,3,FALSE) -> 9.36 | AA29: 9.36
F30: Difference: | H30: =H28-E28 -> 1333.7486 | O30: Cores & | U30: FTGxP 90° elbow: | X30: 3/4"x3/4" | Y30: =VLOOKUP(X30,Prices!$B$87:$F$92,2,FALSE) -> 77352 | Z30: =VLOOKUP(X30,Prices!$B$87:$F$92,3,FALSE) -> 5.95 | AA30: =IF(ISNUMBER(Z30)=TRUE,Z30,0) -> 5.95
O31: Fire stops | P31: (SL) | Q31: (Par) | U31: PxP 90° elbow: | X31: 3/4"x3/4" | Y31: =VLOOKUP(X31,Prices!$B$93:$F$98,2,FALSE) -> 77322 | Z31: =VLOOKUP(X31,Prices!$B$93:$F$98,3,FALSE) -> 5.95 | AA31: =IF(ISNUMBER(Z31)=TRUE,Z31,0) -> 5.95
O32: 1/2" | P32: 0 | Q32: =COUNTIF($Q$8:$Q$27,O32) -> 0
O33: 3/4" | P33: =COUNTIF($N$8:$N$27,O33) -> 0 | Q33: =COUNT(M8:M27)+COUNTIF($Q$8:$Q$27,O33) -> 10
O34: 1" | P34: 0 | Q34: =COUNTIF($Q$8:$Q$27,O34) -> 2
O35: 1-1/4" | P35: 2 | Q35: 3
O36: 1-1/2" | P36: 3 | Q36: 5
O37: 2" | P37: 5 | Q37: 0
O38: 2-1/2" | P38: 0 | Q38: 0
O39: 3" | P39: 0 | Q39: 0
O40: 4" | P40: 0 | Q40: 0

Sheet Prices
A1: Default Prices should be updated on this tab and no where else
A2: everything is looked up by size | C2: change dates above table when any table is updated | L2: Aug 2012 Price List
F3: Aug 2012 Price List | K3: material | L3: Labor
A4: Fitting Type | B4: size | C4: Stock code | D4: List ea. | E4: Bag Price | F4: Bag qty. | J4: size | K4: cost per ft | L4: pipe install | M4: insulation | N4: hangers | O4: $40 labor hour multiplied by times
A5: SmartLoop Kit | B5: SmartLoop Kit | C5: 79000 | D5: 93.62 | E5: 93.62 | F5: 1 | I5: Copper Tube | J5: 1/2" | K5: 1.37 | L5: 6.528 | M5: 1.2 | N5: 4 | O5: from PHCC Labor Calculator III
A6: Copper Tee, P x P x P, | B6: 3/4"x3/4"x3/4" | C6: 77387 | D6: 9.47 | E6: 94.7 | F6: 10 | J6: 3/4" | K6: 2.23 | L6: 8.976 | M6: 1.2 | N6: 4
B7: 1"x3/4"x3/4" | C7: 77422 | D7: 25.9 | E7: 129.5 | F7: 5 | J7: 1" | K7: 3.32 | L7: 9.792 | M7: 1.6 | N7: 3.32
B8: 1"x1"x3/4" | C8: 77437 | D8: 19.38 | E8: 96.9 | F8: 5 | J8: 1-1/4" | K8: 4.69 | L8: 11.424 | M8: 1.6 | N8: 2.856
B9: 1"x1"x1" | C9: 77412 | D9: 43.49 | E9: 217.45 | F9: 5 | J9: 1-1/2" | K9: 6.07 | L9: 13.872 | M9: 2 | N9: 2.5
B10: 1-1/4"x1"x3/4" | C10: 94762 | D10: 28.81 | E10: 28.81 | F10: 1 | J10: 2" | K10: 9.46 | L10: 15.912 | M10: 2 | N10: 2.5
B11: 1-1/4"x1"x1" | C11: 14568 | D11: 31.02 | E11: 31.02 | F11: 1 | J11: 2-1/2" | K11: 13.95 | L11: 19.584 | M11: 2.4 | N11: 2.668
A12: (tee and reducer) | B12: 1-1/4"x1"x1-1/4" | C12: 77442 / 78097 | D12: =D15+D103 -> 41.29 | E12: 91.21 | F12: 1 / 5 | J12: 3" | K12: 19.88 | L12: 23.256 | M12: 2.4 | N12: 2.4
B13: 1-1/4"x1-1/4"x3/4" | C13: 77452 | D13: 26.36 | E13: 26.36 | F13: 1 | J13: 4" | K13: 31.35 | L13: 31.008 | M13: 2.4 | N13: 2.332
B14: 1-1/4"x1-1/4"x1" | C14: 77447 | D14: 27.4 | E14: 27.4 | F14: 1 | J14: 3/8" PEX | K14: 0.5506 | L14: 1.6 | M14: N/A | N14: N/A
B15: 1-1/4"x1-1/4"x1-1/4" | C15: 77442 | D15: 28.81 | E15: 28.81 | F15: 1
B16: 1-1/2"x1"x3/4" | C16: 79660 | D16: 70.91 | E16: 70.91 | F16: 1
B17: 1-1/2"x1"x1" | C17: 15458 | D17: 79.15 | E17: 79.15 | F17: 1 | L17: Updated: Aug 2012
B18: 1-1/2"x1"x1-1/2" | C18: 15463 | D18: 86.83 | E18: 86.83 | F18: 1 | J18: size | K18: Stock code | L18: List per
B19: 1-1/2"x1-1/4"x3/4" | C19: 22233 | D19: 60.84 | E19: 60.84 | F19: 1 | I19: Hangers | J19: 1/2" | K19: Hang 1/2 | L19: 1.21 | M19: Anvil copper plated steel
B20: 1-1/2"x1-1/4"x1" | C20: 15453 | D20: 70.53 | E20: 70.53 | F20: 1 | J20: 3/4" | K20: Hang 3/4 | L20: 1.21 | M20: swivel loop hangers
B21: 1-1/2"x1-1/4"x1-1/4" | C21: 15483 | D21: 52.1 | E21: 52.1 | F21: 1 | J21: 1" | K21: Hang 1 | L21: 1.21
B22: 1-1/2"x1-1/2"x3/4" | C22: 77462 | D22: 49.68 | E22: 49.68 | F22: 1 | J22: 1-1/4" | K22: Hang 1-1/4 | L22: 1.21
B23: 1-1/2"x1-1/2"x1" | C23: 77467 | D23: 50.56 | E23: 50.56 | F23: 1 | J23: 1-1/2" | K23: Hang 1-1/2 | L23: 1.3
B24: 1-1/2"x1-1/2"x1-1/4" | C24: 77472 | D24: 52.36 | E24: 52.36 | F24: 1 | J24: 2" | K24: Hang 2 | L24: 1.3
B25: 1-1/2"x1-1/2"x1-1/2" | C25: 77457 | D25: 55.95 | E25: 55.95 | F25: 1 | J25: 2-1/2" | K25: Hang 2-1/2 | L25: 3.3
A26: (tee and reducer) | B26: 2"x1"x2" | C26: 77477 / 78112 | D26: =D37+D107 -> 89.9 | E26: 89.9 | F26: 1 / 1 | J26: 3" | K26: Hang 3 | L26: 3.66
B27: 2"x1-1/4"x1-1/4" | C27: 15518 | D27: 115.96 | E27: 115.96 | F27: 1 | J27: 4" | K27: Hang 4 | L27: 4.94
B28: 2"x1-1/4"x3/4" | C28: 15513 | D28: 99.42 | E28: 99.42 | F28: 1 | I28: Insulation | J28: 1/2" | K28: Ins 1/2 | L28: 1.316 | M28: List price for NH Armaflex
B29: 2"x1-1/2"x1" | C29: 15498 | D29: 98.14 | E29: 98.14 | F29: 1 | J29: 3/4" | K29: Ins 3/4 | L29: 1.579 | M29: 3/4" nominal wall
B30: 2"x1-1/2"x1-1/4" | C30: 15508 | D30: 101.38 | E30: 101.38 | F30: 1 | J30: 1" | K30: Ins 1 | L30: 1.933
B31: 2"x1-1/2"x1-1/2" | C31: 15503 | D31: 102.79 | E31: 102.79 | F31: 1 | J31: 1-1/4" | K31: Ins 1-1/4 | L31: 2.196
B32: 2"x1-1/2"x2" | C32: 22228 | D32: 95.68 | E32: 95.68 | F32: 1 | J32: 1-1/2" | K32: Ins 1-1/2 | L32: 2.906
B33: 2"x2"x3/4" | C33: 94777 | D33: 80.89 | E33: 80.89 | F33: 1 | J33: 2" | K33: Ins 2 | L33: 3.581
B34: 2"x2"x1" | C34: 94772 | D34: 83.59 | E34: 83.59 | F34: 1 | J34: 2-1/2" | K34: Ins 2-1/2 | L34: 4.244
B35: 2"x2"x1-1/4" | C35: 77487 | D35: 83.59 | E35: 83.59 | F35: 1 | J35: 3" | K35: Ins 3 | L35: 5.409
B36: 2"x2"x1-1/2" | C36: 77482 | D36: 62.83 | E36: 62.83 | F36: 1 | J36: 4" | K36: Ins 4 | L36: 6.847
B37: 2"x2"x2" | C37: 77477 | D37: 69.12 | E37: 69.12 | F37: 1 | I37: Firestop | J37: 1/2" | K37: FS 1/2 | L37: 26.3
B38: 2-1/2"x3/4"x2-1/2" | C38: 20684 | D38: 336.03 | E38: 336.03 | F38: 1 | J38: 3/4" | K38: FS 3/4 | L38: 26.3
B39: 2-1/2"x1"x2-1/2" | C39: 20689 | D39: 346.95 | E39: 346.95 | F39: 1 | J39: 1" | K39: FS 1 | L39: 20
B40: 2-1/2"x1-1/4"x2-1/2" | C40: 20694 | D40: 351.09 | E40: 351.09 | F40: 1 | J40: 1-1/4" | K40: FS 1-1/4 | L40: 27.8
B41: 2-1/2"x1-1/2"x2-1/2" | C41: 20699 | D41: 307.06 | E41: 307.06 | F41: 1 | J41: 1-1/2" | K41: FS 1-1/2 | L41: 28.3
B42: 2-1/2"x2"x3/4" | C42: 20704 | D42: 322.85 | E42: 322.85 | F42: 1 | J42: 2" | K42: FS 2 | L42: 30
B43: 2-1/2"x2"x1" | C43: 20709 | D43: 303.99 | E43: 303.99 | F43: 1 | J43: 2-1/2" | K43: FS 2-1/2 | L43: 33
B44: 2-1/2"x2"x1-1/2" | C44: 22283 | D44: 285.46 | E44: 285.46 | F44: 1 | J44: 3" | K44: FS 3 | L44: 36.4
B45: 2-1/2"x2"x2" | C45: 22278 | D45: 286.59 | E45: 286.59 | F45: 1 | J45: 4" | K45: FS 4 | L45: 39.6
B46: 2-1/2"x2"x2-1/2" | C46: 20714 | D46: 323.03 | E46: 323.03 | F46: 1 | I46: Core Drilling | J46: 1/2" | K46: CD 1/2 | L46: 45
B47: 2-1/2"x2-1/2"x1/2" | C47: 22303 | D47: 316.1 | E47: 316.1 | F47: 1 | J47: 3/4" | K47: CD 3/4 | L47: 45
B48: 2-1/2"x2-1/2"x3/4" | C48: 22298 | D48: 316.1 | E48: 316.1 | F48: 1 | J48: 1" | K48: CD 1 | L48: 45
B49: 2-1/2"x2-1/2"x1" | C49: 22293 | D49: 316.1 | E49: 316.1 | F49: 1 | J49: 1-1/4" | K49: CD 1-1/4 | L49: 45
B50: 2-1/2"x2-1/2"x1-1/4" | C50: 22288 | D50: 316.1 | E50: 316.1 | F50: 1 | J50: 1-1/2" | K50: CD 1-1/2 | L50: 45
B51: 2-1/2"x2-1/2"x1-1/2" | C51: 20803 | D51: 302.07 | E51: 302.07 | F51: 1 | J51: 2" | K51: CD 2 | L51: 45
B52: 2-1/2"x2-1/2"x2" | C52: 20688 | D52: 266.28 | E52: 266.28 | F52: 1 | J52: 2-1/2" | K52: CD 2-1/2 | L52: 45
B53: 2-1/2"x2-1/2"x2-1/2" | C53: 20683 | D53: 226.67 | E53: 226.67 | F53: 1 | J53: 3" | K53: CD 3 | L53: 45
B54: 3"x3/4"x3" | C54: 20719 | D54: 338.78 | E54: 338.78 | F54: 1 | J54: 4" | K54: CD 4 | L54: 45
B55: 3"x1"x3" | C55: 20724 | D55: 358.86 | E55: 358.86 | F55: 1
B56: 3"x1-1/4"x3" | C56: 20729 | D56: 439.76 | E56: 439.76 | F56: 1
B57: 3"x1-1/2"x3" | C57: 20727 | D57: 374.8 | E57: 374.8 | F57: 1
B58: 3"x2"x2" | C58: 20732 | D58: 358.58 | E58: 358.58 | F58: 1
B59: 3"x2"x2-1/2" | C59: 20734 | D59: 372.82 | E59: 372.82 | F59: 1
B60: 3"x2"x3" | C60: 20739 | D60: 377.67 | E60: 377.67 | F60: 1
B61: 3"x2-1/2"x2" | C61: 20744 | D61: 353.21 | E61: 353.21 | F61: 1
B62: 3"x2-1/2"x2-1/2" | C62: 20749 | D62: 390.07 | E62: 390.07 | F62: 1
B63: 3"x2-1/2"x3" | C63: 20754 | D63: 387.62 | E63: 387.62 | F63: 1
B64: 3"x3"x1/2" | C64: 20759 | D64: 344.32 | E64: 344.32 | F64: 1
B65: 3"x3"x3/4" | C65: 22323 | D65: 333.14 | E65: 333.14 | F65: 1
B66: 3"x3"x1" | C66: 22308 | D66: 333.14 | E66: 333.14 | F66: 1
B67: 3"x3"x1-1/4" | C67: 22313 | D67: 333.14 | E67: 333.14 | F67: 1
B68: 3"x3"x1-1/2" | C68: 20798 | D68: 333.14 | E68: 333.14 | F68: 1
B69: 3"x3"x2" | C69: 20698 | D69: 325.96 | E69: 325.96 | F69: 1
B70: 3"x3"x2-1/2" | C70: 20703 | D70: 339.99 | E70: 339.99 | F70: 1
B71: 3"x3"x3" | C71: 20693 | D71: 283.32 | E71: 283.32 | F71: 1
A72: (tee and reducer) | B72: 4"x1"x4" | C72: 20708 / 20773 / 78112 | D72: =D86+D118+D107 -> 572.17
B73: 4"x3"x1" | C73: 20774 / 78112 | D73: =D76+D107 -> 573.42
B74: 4"x3"x1-1/4" | C74: 20774 / 78117 | D74: =D76+D108 -> 578.07
B75: 4"x3"x1-1/2" | C75: 20774 / 78122 | D75: =D76+D109 -> 577.37
B76: 4"x3"x2" | C76: 20774 | D76: 552.64 | E76: 552.64 | F76: 1
B77: 4"x3"x3" | C77: 20784 | D77: 541.53 | E77: 541.53 | F77: 1
B78: 4"x4"x1/2" | C78: 20788 | D78: 533.68 | E78: 533.68 | F78: 1
B79: 4"x4"x3/4" | C79: 20793 | D79: 526.57 | E79: 526.57 | F79: 1
B80: 4"x4"x1" | C80: 20794 | D80: 391.23 | E80: 391.23 | F80: 1
B81: 4"x4"x1-1/4" | C81: 20795 | D81: 475.12 | E81: 475.12 | F81: 1
B82: 4"x4"x1-1/2" | C82: 20808 | D82: 451.61 | E82: 451.61 | F82: 1
B83: 4"x4"x2" | C83: 20713 | D83: 359.84 | E83: 359.84 | F83: 1
B84: 4"x4"x2-1/2" | C84: 20718 | D84: 370.85 | E84: 370.85 | F84: 1
B85: 4"x4"x3" | C85: 20723 | D85: 406.52 | E85: 406.52 | F85: 1
B86: 4"x4"x4" | C86: 20708 | D86: 397.54 | E86: 397.54 | F86: 1
A87: Copper FTGxP elbow 90° | B87: 1/2"x1/2" | C87: 77347 | D87: 3.53 | E87: 35.3 | F87: 10
B88: 3/4"x3/4" | C88: 77352 | D88: 5.95 | E88: 59.5 | F88: 10
B89: 1"x1" | C89: 77357 | D89: 13.67 | E89: 68.35 | F89: 5
B90: 1-1/4"x1-1/4" | C90: 77362 | D90: 24.27 | E90: 24.27 | F90: 1
B91: 1-1/2"x1-1/2" | C91: 77367 | D91: 46.3 | E91: 46.3 | F91: 1
B92: 2"x2" | C92: 77372 | D92: 63.64 | E92: 63.64 | F92: 1
A93: Copper PxP elbow 90° | B93: 1/2"x1/2" | C93: 77317 | D93: 3.53 | E93: 35.3 | F93: 10
B94: 3/4"x3/4" | C94: 77322 | D94: 5.95 | E94: 59.5 | F94: 10
B95: 1"x1" | C95: 77327 | D95: 11.92 | E95: 59.6 | F95: 5
B96: 1-1/4"x1-1/4" | C96: 77332 | D96: 24.03 | E96: 24.03 | F96: 1
B97: 1-1/2"x1-1/2" | C97: 77337 | D97: 45.46 | E97: 45.46 | F97: 1
B98: 2"x2" | C98: 77342 | D98: 63.18 | E98: 63.18 | F98: 1
A99: reducers FTGxP | B99: 3/4"x1/2" | C99: 78077 | D99: 3.53 | E99: 35.3 | F99: 10
B100: 1"x1/2" | C100: 78082 | D100: 9.02 | E100: 90.2 | F100: 10
B101: 1"x3/4" | C101: 78087 | D101: 9.36 | E101: 93.6 | F101: 10
B102: 1-1/4"x1/2" | C102: 22333 | D102: 10.87 | E102: 54.35 | F102: 5
B103: 1-1/4"x1" | C103: 78097 | D103: 12.48 | E103: 62.4 | F103: 5
B104: 1-1/2"x3/4" | C104: 14543 | D104: 18.54 | E104: 18.54 | F104: 1
B105: 1-1/2"x1" | C105: 78102 | D105: 18.33 | E105: 18.33 | F105: 1
B106: 1-1/2"x1-1/4" | C106: 78107 | D106: 18.44 | E106: 18.44 | F106: 1
B107: 2"x1" | C107: 78112 | D107: 20.78 | E107: 20.78 | F107: 1
B108: 2"x1-1/4" | C108: 78117 | D108: 25.43 | E108: 25.43 | F108: 1
B109: 2"x1-1/2" | C109: 78122 | D109: 24.73 | E109: 24.73 | F109: 1
B110: 2-1/2"x1" | C110: 20814 | D110: 88.83 | E110: 88.83 | F110: 1
B111: 2-1/2"x1-1/4" | C111: 20815 | D111: 124.82 | E111: 124.82 | F111: 1
B112: 2-1/2"x1-1/2" | C112: 20813 | D112: 125.57 | E112: 125.57 | F112: 1
B113: 2-1/2"x2" | C113: 20758 | D113: 107.97 | E113: 107.97 | F113: 1
B114: 3"x1-1/4" | C114: 20817 | D114: 144.54 | E114: 144.54 | F114: 1
B115: 3"x1-1/2" | C115: 20818 | D115: 137.36 | E115: 137.36 | F115: 1
B116: 3"x2" | C116: 20763 | D116: 133.67 | E116: 133.67 | F116: 1
B117: 3"x2-1/2" | C117: 20768 | D117: 137.69 | E117: 137.69 | F117: 1
B118: 4"x2" | C118: 20773 | D118: 153.85 | E118: 153.85 | F118: 1
B119: 4"x2-1/2" | C119: 20778 | D119: 168.09 | E119: 168.09 | F119: 1
B120: 4"x3" | C120: 20783 | D120: 177.65 | E120: 177.65 | F120: 1

Sheet Heat Loss
A2: 1 | B2: Select "Calculate Minimum Flow" or "Calculate Riser Temperatures" to begin. | R2: 1 | S2: 0.75 | AB2: 0.1
A3: 2 | B3: Enter heater and ambient temperatures in upper yellow cells (E11:E13). | R3: 1.25 | S3: 1 | AB3: 0.2
A4: 3 | B4: Enter insulation thermal resistance (k value) in yellow cell below (F19). | R4: 1.5 | S4: 1.25 | AB4: 0.3
A5: 4 | B5: Enter "insulation thickness" (in inches) in yellow cells in middle of second table (G19, G21, and G22). | R5: 2 | S5: 1.5 | AB5: 0.4
A6: 5 | B6: Enter minimum allowable system temperature in second yellow cell (E12). | R6: 2.5 | S6: 2 | AB6: 0.5
A7: 6 | B7: Click " Calculate " button, | R7: 3 | S7: 2.5 | AB7: 0.6
A8: 7 | B8: Minimum flow rates required to maintain temperature above the minimum alowable temperature will be displayed in the blue cells (I19, I21). | R8: 4 | S8: 3 | AB8: 0.7
A9: 8 | B9: Calculating temperatures based on flow rate is now recommended as it will give more accurate results. | AB9: 0.8
AB10: 0.9
B11: Heater Temperature | E11: 140 | F11: F | J11: user input | AB11: 1
B12: Minimum Temperature | E12: 134 | F12: F | J12: constants / input elsewhere in program | AB12: 1.1
B13: Ambient Temperature | E13: 70 | F13: F | J13: calculated values | AB13: 1.2
B14: Height of Riser | E14: =Length!K15 -> 134 | F14: ft | J14: system temperature below minimum | AB14: 1.3
AB15: 1.4 | AD15: pipe | AE15: ID | AF15: OD | AG15: wall
C16: Pipe | D16: I.D. | E16: O.D. | F16: k - Value | G16: insulation | H16: insulation | I16: Flow | AB16: 1.5 | AD16: size | AG16: thickness
C17: size | D17: Pipe | E17: Pipe | F17: k insulation | G17: thickness | H17: outer diameter | I17: Rate | M17: equations: | N17: dQ | O17: = | P17: 2*k*π*ΔT | AB17: 1.6 | AD17: 0.5 | AE17: =AF17-(2*AG17) -> 0.545 | AF17: 0.625 | AG17: 0.04
C18: (in) | D18: (in) | E18: (in) | F18: (Btu in/(hr ft2 °F) | G18: (in) | H18: (in) | I18: (gpm) | M18: =PI() -> 3.141592654 | N18: L | P18: ln(OD/ID) | AB18: 1.7 | AD18: 0.75 | AE18: =AF18-(2*AG18) -> 0.66 | AF18: 0.75 | AG18: 0.045
B19: SL Riser: | C19: =MODE('Pressure Losses'!I21:I40) -> 2 | D19: =VLOOKUP(C19,$AD$17:$AF$23,2) -> 1.985 | E19: =VLOOKUP(C19,$AD$17:$AF$23,3) -> 2.125 | F19: 0.243 | G19: 1 | H19: =E19+2*G19 -> 4.125 | I19: 0.2 | AB19: 1.8 | AD19: 1 | AE19: 1.025 | AF19: 1.125 | AG19: 0.05
B20: PEX: | C20: 0.375 | D20: 0.35 | E20: 0.5 | F20: 0.2 | G20: =(E20-D20)/2 -> 0.075 | H20: N/A | I20: =flow -> 0.2 | N20: ΔTw | O20: = | P20: dQ | AB20: 1.9 | AD20: 1.25 | AE20: 1.265 | AF20: 1.375 | AG20: 0.055
B21: Parallel: | C21: =VLOOKUP(C19,R2:S8,2,FALSE) -> 1.5 | D21: =VLOOKUP(C21,$AD$17:$AF$23,2) -> 1.505 | E21: =VLOOKUP(C21,$AD$17:$AF$23,3) -> 1.625 | F21: =kVal -> 0.243 | G21: 1 | H21: =E21+2*G21 -> 3.625 | I21: 0.7 | N21: L | P21: L*dV*C | AB21: 2 | AD21: 1.5 | AE21: 1.505 | AF21: 1.625 | AG21: 0.06
B22: Return: | C22: 0.75 | D22: =VLOOKUP(C22,$AD$17:$AF$23,2) -> 0.66 | E22: =VLOOKUP(C22,$AD$17:$AF$23,3) -> 0.75 | F22: =kVal -> 0.243 | G22: 1 | H22: =E22+2*G22 -> 2.75 | I22: =I21 -> 0.7 | AB22: 2.1 | AD22: 2 | AE22: 1.985 | AF22: 2.125 | AG22: 0.07
F23: 2773.92 | N23: dVest | O23: = | P23: π*L*k*ΔT | AB23: 2.2 | AD23: 2.5 | AE23: 2.465 | AF23: 2.625 | AG23: 0.08
G24: U= | H24: =1/((IID*(IID-D19)/D19/F23)+(IOD*LN(IID/D19)/2/F23)+(IOD*LN(IOD/IID)/2/kVal)+((IOD-IID)/kVal)) -> 0.07214814919 | K24: Temperature (°F) | P24: 10°F*C*ln(OD/ID) | AB24: 2.3
B25: Required Circulator Pressure | G25: llU= | H25: =1/((E21*(E21-D21)/D21/F23)+(H21*LN(E21/D21)/2/F23)+(H21*LN(H21/E21)/2/kVal)+((H21-E21)/kVal)) -> 0.07034758194 | K25: SmartLoop | L25: Parallel | AB25: 2.4
B26: SmartLoop | D26: Parallel | G26: llUR = | H26: =1/((llIID*(llIID-D22)/D22/F23)+(H22*LN(llIID/D22)/2/F23)+(H22*LN(H22/llIID)/2/kVal)+((H22-llIID)/kVal)) -> 0.064174708 | J26: Top of Riser | M26: Top of Riser | AB26: 2.5
B27: friction | C27: pump | D27: friction | E27: pump | J27: Riser Return | M27: Riser Return | O27: dQ | P27: : rate of heat transfer (Btu / hr) | AB27: 2.6
B28: loss | C28: pressure | D28: loss | E28: pressure | O28: L | P28: : unit of length (ft) | AB28: 2.7
B29: (psi/ft) | D29: (psi/ft) | O29: k | P29: : thermal conductivity (Btu / (hr*ft*°F)) | AB29: 2.8
B30: =0.00434*0.2083*POWER(100/150,1.852)*POWER(flow,1.852)/POWER((PID+0.000001),4.8655) -> 0.00358011051 | C30: =$B$30*(length+12.3) -> 0.5237701676 | D30: =0.00434*0.2083*POWER(100/150,1.852)*POWER(Pflow,1.852)/POWER((D22+0.000001),4.8655) -> 0.001664122673 | E30: =D30*(length+4.5) -> 0.2304809903 | F30: (psi) | O30: π | P30: : pi | AB30: 2.9
C31: =C30/0.433 -> 1.209630872 | E31: =E30/0.433 -> 0.5322886611 | F31: (ft of head) | O31: ΔT | P31: : temperature difference between water and air | AB31: 3
O32: ln | P32: : natural logarithm | AB32: 3.1
O33: ΔTw | P33: : change in temperature of water as it flows | AB33: 3.2
O34: dV | P34: : Volumetric flow rate (gpm) | AB34: 3.3
O35: С | P35: : constant that includes density and specific heat capacity of water at ~140°F, and a conversion factor from (gpm) to (ft3/hr) | AB35: 3.4
AB36: 3.5
AB37: 3.6
P38: C = 492.312 ((Btu*min) / (°F*gal*hr)) | AB38: 3.7
P39: using: | Q39: density (ρ) = 61.379 lb/ft3 | AB39: 3.8
Q40: specific heat (Cp) = 1 Btu/lb*°F | AB40: 3.9
AB41: 4
AB42: 4.1
AB43: 4.2
AB44: 4.3
AB45: 4.4
AB46: 4.5
AB47: 4.6
AB48: 4.7
AB49: 4.8
AB50: 4.9
AB51: 5

Sheet Cost Compare
A2: 1 | B2: Enter local price of electricity, natural gas, and water in top 3 yellow cells (C15:C17). (initial values are national averages for first six months of 2012)
A3: 2 | B3: Enter total time (in hours per day) that circulation system will be operated in yellow cell under circulation operation (F15).
A4: 3 | B4: Enter the power rating of the circulator and efficiency of the water heater (C20:C21)
B5: * With No Recirculation, this sheet uses the estimate that stagnant water in pipe will cool to ambient every 2 operating hours
B6: Notes: | C6: Calculations on this sheet are based on differences in only the design of the hot water risers.
C7: Gas fired hot water heaters are used in this comparison.
C8: All other parts of the water distribution system are assumed to be equal and do not affect any calculations on this page.
C9: Total water usage depends on installed fixtures, flow rates, and frequency of use (the numbers shown represent water usage strictly due to recirculating or waiting for hot water).
C10: "No Recirculation" calculations are based on heating and replacing the water that will sit and cool in the riser every 2 hours.
F13: Total time per day* | J13: SmartLoop | K13: Parallel | L13: No Recirc | P13: SmartLoop | Q13: Parallel | R13: No Recirc
C14: cost per unit | D14: sales unit | F14: for comparison | J14: estimated weekly operating cost | P14: estimated yearly operating cost
B15: electricity | C15: 0.12 | D15: $/kWh | F15: 8 | G15: hr/day | I15: circulator | J15: =7*C20*C15*F15/1000 -> 0.4032 | K15: =7*C20*C15*F15/1000 -> 0.4032 | L15: 0 | M15: $/week | O15: circulator | P15: =J15*52 -> 20.9664 | Q15: 20.9664 | R15: 0 | S15: $/year
B16: gas | C16: 1.03 | D16: $/therm | I16: water heater | J16: =F15*7*C26*C16/100000/C21 -> 10.19363554 | K16: =F15*7*C27*C16/100000/C21 -> 10.19363554 | L16: =7*F15/2*C28*C16/100000 -> 4.587766639 | M16: $/week | O16: water heater | P16: 530.0690483 | Q16: 530.0690483 | R16: 238.5638652 | S16: $/year
B17: makeup water | C17: 2.37 | D17: $/1000 gal | I17: water | J17: 0 | K17: 0 | L17: =7*C17/1000*C22*F15/2 -> 1.429523652 | M17: $/week | O17: water | P17: 0 | Q17: 0 | R17: 74.33522992 | S17: $/year
I18: Total: | J18: =SUM(J15:J17) -> 10.59683554 | K18: =SUM(K15:K17) -> 10.59683554 | L18: =SUM(L15:L17) -> 6.017290291 | M18: $/week | O18: Total: | P18: 551.0354483 | Q18: 551.0354483 | R18: 312.8990951 | S18: $/year
B19: Ratings | I19: Water: | J19: 0 | K19: 0 | L19: =F15/2*C22*7 -> 603.1745369 | M19: gal/week | O19: Water: | P19: =J19*52 -> 0 | Q19: 0 | R19: 31365.07592 | S19: gal/year
B20: circulator: | C20: 60 | D20: W
B21: heater efficiency: | C21: 0.78 | L21: Cost of Riser Installation: | P21: =Fittings!E28 -> 6223.5064 | Q21: =Fittings!H28 -> 7557.255 | R21: =Fittings!H28-Fittings!H9-SUM(Fittings!AA29:AA31)-(Fittings!F9*'Labor&Material'!M10)-(COUNT(Fittings!M8:M27)*'Labor&Material'!M46) -> 5573.185
B22: riser volume | C22: =PI()/4*length*'Heat Loss'!D19*'Heat Loss'!D19/19.25 -> 21.54194775 | D22: gal | L22: Cost over "No Recirc" | P22: =P21-$R$21 -> 650.3214 | Q22: =Q21-$R$21 -> 1984.07 | R22: =R21-$R$21 -> 0
J24: First 5 years: | L24: Cost for first five years | P24: =P21+(P18*5) -> 8978.683642 | Q24: =Q21+(Q18*5) -> 10312.43224 | R24: =R21+(R18*5) -> 7137.680476
B25: Recirculation Type: | K25: (installation and operation) | L25: Cost over "No Recirc" | P25: =P24-$R$24 -> 1841.003166 | Q25: =Q24-$R$24 -> 3174.751766 | R25: =R24-$R$24 -> 0
B26: SmartLoop | C26: =flow*(heater-'Heat Loss'!K27)*492.312 -> 13784.736 | D26: Btu/hr | L26: gallons of water wasted: | P26: 0 | Q26: 0 | R26: =5*R19 -> 156825.3796 | S26: gallons
B27: Parallel | C27: =flow*(heater-'Heat Loss'!L27)*492.312 -> 13784.736 | D27: Btu/hr
B28: No Recirculation | C28: =8.205*C22*(heater-'Cost Compare'!C31) -> 15907.65131 | D28: Btu | J28: First 10 years: | L28: Cost for first ten years | P28: =P21+10*P18 -> 11733.86088 | Q28: =Q21+10*Q18 -> 13067.60948 | R28: =R21+10*R18 -> 8702.175951
K29: (installation and operation) | L29: Cost over "No Recirc" | P29: =P28-$R$28 -> 3031.684932 | Q29: =Q28-$R$28 -> 4365.433532 | R29: =R28-$R$28 -> 0
B30: incoming cold | L30: gallons of water wasted: | P30: 0 | Q30: 0 | R30: =10*R19 -> 313650.7592 | S30: gallons
B31: water temperature | C31: 50 | D31: °F
M35: dQ = dV*ΔTh*C | Q35: dQ: rate of heat transfer
Q36: dV: volumetric flow rate
M37: Q = Vriser*ΔTh*C | Q37: ΔTh: temperature difference between water entering and exiting heater
Q38: C: constant that contains ρ, Cp, and a conversion from ft3 to gal
Q39: Q: heat transfer
Q40: Vriser: volume of riser

Sheet scratch (hidden)

Sheet wsfuGPM (hidden)
D3: demand
C4: Load | D4: tank | E4: valve
D5: (GPM) | E5: (GPM)
C6: 1 | D6: 3 | E6: 3 | F6: note: zero fixtures allows the program to stop at one fixture unit. An input of zero is interpreted the same as blank.
C7: =C6+1 -> 2 | D7: 3 | E7: 3
C8: =C7+1 -> 3 | D8: 5 | E8: 5
C9: 4 | D9: 6.5 | E9: 6.5
C10: 5 | D10: 8 | E10: 8
C11: 6 | D11: 9.4 | E11: 15
C12: 7 | D12: 10.7 | E12: 17.4
C13: 8 | D13: 11.8 | E13: 19.8 | I13: 0.5 | J13: 0.75 | K13: 1 | L13: 1.25 | M13: 1.5 | N13: 2 | O13: 2.5 | P13: 3 | Q13: 3.5 | R13: 4
C14: 9 | D14: 12.8 | E14: 22.2 | G14: 90 deg elbow | I14: 1 | J14: 1.5 | K14: 2.5 | L14: 3 | M14: 4 | N14: 5.5 | O14: 7 | P14: 9 | Q14: 9 | R14: 12.5
C15: 10 | D15: 13.7 | E15: 24.6 | G15: 45 deg elbow | I15: 0.5 | J15: 0.5 | K15: 1 | L15: 1 | M15: 1.5 | N15: 2 | O15: 2.5 | P15: 3.5 | Q15: 3.5 | R15: 5
C16: 11 | D16: 14.6 | E16: 27 | G16: Tee, branch | I16: 2 | J16: 2 | K16: 4.5 | L16: 5.5 | M16: 7 | N16: 9 | O16: 12 | P16: 15 | Q16: 14 | R16: 21
C17: 12 | D17: 15.4 | E17: 27.8 | G17: Tee, run | K17: 0 | L17: 0.5 | M17: 0.5 | N17: 0.5 | O17: 0.5 | P17: 1 | Q17: 1 | R17: 1
C18: =C17+1 -> 13 | D18: 16 | E18: 28.6 | G18: Coupling | L18: 0.5 | M18: 0.5 | N18: 0.5 | O18: 0.5 | P18: 1 | Q18: 1 | R18: 1
C19: 14 | D19: 16.5 | E19: 29.4 | G19: Ball Valve | K19: 0.5 | L19: 0.5 | M19: 0.5 | N19: 0.5
C20: 15 | D20: 17 | E20: 30.2 | G20: Gate Valve | N20: 0.5 | O20: 1 | P20: 1.5 | Q20: 2 | R20: 2
C21: 16 | D21: 17.5 | E21: 31 | G21: Butterfly Valve | N21: 7.5 | O21: 10 | P21: 15.5 | R21: 16
C22: =C21+1 -> 17 | D22: 18 | E22: 31.8 | G22: Check Valve | I22: 2.5 | J22: 2.5 | K22: 4.5 | L22: 5.5 | M22: 6.5 | N22: 9 | O22: 11.5 | P22: 14.5 | Q22: 12.5 | R22: 18.5
C23: 18 | D23: 18.4 | E23: 32.6
C24: 19 | D24: 18.8 | E24: 33.4
C25: =C24+1 -> 20 | D25: 19.2 | E25: 34.2
C26: =C25+5 -> 25 | D26: 19.6 | E26: 35
C27: 30 | D27: 21.5 | E27: 38
C28: 35 | D28: 23.3 | E28: 42
C29: 40 | D29: 24.9 | E29: 44
C30: 45 | D30: 26.3 | E30: 46
C31: 50 | D31: 27.7 | E31: 48
C32: =C31+10 -> 60 | D32: 29.1 | E32: 50
C33: =C32+10 -> 70 | D33: 32 | E33: 54
C34: =C33+10 -> 80 | D34: 35 | E34: 58
C35: =C34+10 -> 90 | D35: 38 | E35: 61.2
C36: =C35+10 -> 100 | D36: 41 | E36: 64.3
C37: 120 | D37: 43.5 | E37: 67.5
C38: 140 | D38: 48 | E38: 73
C39: 160 | D39: 52.5 | E39: 77
C40: 180 | D40: 57 | E40: 81
C41: 200 | D41: 61 | E41: 85.5
C42: 225 | D42: 65 | E42: 90
C43: 250 | D43: 70 | E43: 95.5
C44: 275 | D44: 75 | E44: 101
C45: 300 | D45: 80 | E45: 104.5
C46: 400 | D46: 85 | E46: 108
C47: 500 | D47: 105 | E47: 127
C48: 750 | D48: 124 | E48: 143
C49: 1000 | D49: 170 | E49: 177
C50: 1250 | D50: 208 | E50: 208
C51: 1500 | D51: 239 | E51: 239
C52: 1750 | D52: 269 | E52: 269
C53: 2000 | D53: 297 | E53: 297
C54: 2500 | D54: 325 | E54: 325
C55: 3000 | D55: 380 | E55: 380
C56: 4000 | D56: 433 | E56: 433
C57: 5000 | D57: 525 | E57: 525
C58: 5001 | D58: 593 | E58: 593
